Cogmind - Beta 15 @@@ ROGUE MODE // 2025.06.17 @ 22:19:50 Player: EX-OCT Result: Destroyed by P-80 Master with Gamma Rifle Performance ------------- Evolutions (9) 4500 Regions Visited (37) 7400 Robots Destroyed (468) 2340 Value Destroyed (32945) 32945 Prototype IDs (73) 1460 Alien Tech Used (0) 0 Bonus (37664) 37664 TOTAL SCORE: 86309 Bonus ------- Triggered High Security 500 High Alert Combat Kills 9321 Follower Combat Kills 17386 Entered Garrisons 2800 Used RIF Installer 7500 Scanned by Researcher 500 Friendly Fire -343 Cogmind --------- Core Integrity 0/1600 Matter 110/800 Energy 2/100 System Corruption 37% Temperature Cool (2) Movement Hovering (80) Location -1/Command Parts ------- > --- POWER (2) -------- (None) > --- PROPULSION (8) --- Experimental Biometal Medium Treads Combat Linear Gravjet > --- UTILITY (13) ----- Experimental Matter Compressor Improved Melee Analysis Suite Relay Coupler [Grunt] (3) > --- WEAPON (2) ------- (None) > --- INVENTORY (5) ---- Enhanced Nova Cannon Omega Cannon Peak State ------------ > --- POWER ------------ Quantum Reactor Reinforced Quantum Reactor > --- PROPULSION ------- Biometal Heavy Treads Biometal Heavy Treads Advanced Heavy Siege Treads Advanced Heavy Siege Treads > --- UTILITY ---------- Advanced Power Amplifier Cargo Storage Unit SHELL Armor AEGIS Remote Shield Relay Coupler [NC] Relay Coupler [Grunt] Relay Coupler [Sentry] Relay Coupler [Specialist] Relay Coupler [Hunter] Relay Coupler [Heavy] > --- WEAPON ----------- Enhanced Hardcell Cannon Z-bomb Delivery System > --- INVENTORY -------- Quantum Reactor Quantum Reactor Light Quantum Reactor Light Quantum Reactor Improved Heavy Treads Improved Heavy Treads Experimental Matter Compressor Centrium Heavy Armor Plating Advanced Point Defense System Advanced Point Defense System Relay Coupler [NC] Relay Coupler [NC] Relay Coupler [Swarmer] Relay Coupler [Sentry] Relay Coupler [Proto] Relay Coupler [Proto] Relay Coupler [Proto] Cooled Nova Cannon Omega Cannon Advanced Remote Datajack Advanced Remote Datajack Advanced Remote Datajack Advanced Remote Datajack Advanced Remote Datajack Thunder Hammer Enhanced Force Lance [Rating: 208] Favorites ----------- Power Quantum Reactor Engine Cooled Ion Engine Power Core Light Nuclear Core Reactor Quantum Reactor Propulsion Improved Heavy Treads Treads Improved Heavy Treads Leg Myomer Leg Wheel Compact Wheel Hover Unit Airjet Flight Unit Improved Cesium-ion Thruster Utility Relay Coupler [Grunt] Device AEGIS Remote Shield Storage Cargo Storage Unit Processor Improved Corruption Screen Hackware Relay Coupler [Grunt] Protection SHELL Armor Weapon Enhanced Force Lance Energy Gun Beamcaster Energy Cannon Beam Cannon Ballistic Gun Gauss Rifle Ballistic Cannon Enhanced Hardcell Cannon Launcher Missile Launcher Special Weapon Advanced Remote Datajack Impact Weapon Heavy Flail Slashing Weapon Katana Piercing Weapon Enhanced Force Lance Special Melee Weapon Improved Datajack Build | -11 -10 -10 -9 -9 -8 -8 -8 -8 -8 -8 -7 -7 -7 -7 -6 -6 -6 -6 -5 -5 -5 -5 -4 -4 -4 -4 -3 -3 -3 -3 -3 -2 -2 -1 -1 -1 -1 ------- Run | Yrd Mat Min Mat Min Mat Gar Mat Gar Mat Gar Fac Gar Fac Gar Fac Gar Fac Gar Fac Was Fac Gar Fac Gar Fac Gar Res Gar Res Tes Gar Res Gar Acc Gar Acc Com Slots Evolved 18 | . . . 2 . 2 . . . . . 2 . . . 2 . . . 2 . . . 2 . . . 2 . . . . 2 . 2 . . . Power 1 | . . . . . . . . . . . . . . . . . . . . . . . . . . . . . . . . . . 1 . . . Propulsion 6 | . . . . . 1 . . . . . 1 . . . 1 . . . . . . . 1 . . . 2 . . . . . . . . . . Utility 11 | . . . 2 . 1 . . . . . 1 . . . 1 . . . 2 . . . 1 . . . . . . . . 2 . 1 . . . Weapon . | . . . . . . . . . . . . . . . . . . . . . . . . . . . . . . . . . . . . . . Parts Attached 482 | 5 15 5 26 2 3 38 13 8 4 10 41 10 . 9 14 13 12 18 1 . 32 30 6 15 12 20 9 3 4 27 12 9 4 2 8 24 18 Power 49 | 1 1 2 3 . . 5 1 1 . . 2 1 . . 2 3 . 2 . . 2 4 1 2 . 1 1 . . 5 . . . 1 2 2 4 Engine 10 | 1 . 1 3 . . . 1 1 . . . . . . . 1 . . . . . 2 . . . . . . . . . . . . . . . Core 16 | . 1 1 . . . 4 . . . . 2 . . . 2 1 . 1 . . 2 2 . . . . . . . . . . . . . . . Reactor 23 | . . . . . . 1 . . . . . 1 . . . 1 . 1 . . . . 1 2 . 1 1 . . 5 . . . 1 2 2 4 Propulsion 147 | 1 5 1 6 1 1 12 4 1 1 3 19 2 . 4 4 1 1 7 . . 12 4 1 5 4 8 6 2 . 9 4 2 2 . 1 5 8 Treads 38 | . . . . . . . 3 1 1 3 . . . . . . . . . . . 2 1 5 4 2 . . . . 4 2 2 . 1 5 2 Leg 78 | 1 5 1 2 . . 12 1 . . . 7 2 . 4 4 1 1 7 . . 5 2 . . . 6 6 2 . 9 . . . . . . . Wheel 10 | . . . . . . . . . . . 10 . . . . . . . . . . . . . . . . . . . . . . . . . . Hover 13 | . . . 3 1 1 . . . . . 2 . . . . . . . . . 3 . . . . . . . . . . . . . . . 3 Flight 8 | . . . 1 . . . . . . . . . . . . . . . . . 4 . . . . . . . . . . . . . . . 3 Utility 192 | 1 6 1 7 . 1 18 7 3 2 5 13 5 . 3 5 8 7 7 1 . 11 14 4 4 2 8 2 1 3 7 7 5 2 . 4 15 3 Device 46 | 1 4 1 3 . 1 6 1 . 1 . 3 . . . . . 2 . 1 . 2 2 1 2 . 2 . . . 1 2 2 . . . 7 1 Storage 11 | . . . 1 . . 1 1 . . . 1 . . . . . 1 . . . 1 1 . . . . . . 1 . 1 . . . 1 1 . Processor 15 | . . . . . . . . . . . 2 . . . . . 1 . . . 3 1 3 . . . . . 1 1 1 . . . . 1 1 Hackware 83 | . . . . . . 6 4 2 . 2 2 4 . 3 3 4 2 6 . . 4 10 . 1 2 5 2 . 1 3 3 3 2 . 3 5 1 Protection 37 | . 2 . 3 . . 5 1 1 1 3 5 1 . . 2 4 1 1 . . 1 . . 1 . 1 . 1 . 2 . . . . . 1 . Artifact . | . . . . . . . . . . . . . . . . . . . . . . . . . . . . . . . . . . . . . . Weapon 94 | 2 3 1 10 1 1 3 1 3 1 2 7 2 . 2 3 1 4 2 . . 7 8 . 4 6 3 . . 1 6 1 2 . 1 1 2 3 Energy Gun 11 | 2 . . 3 . . . . . . 1 1 . . . . . 1 . . . 1 2 . . . . . . . . . . . . . . . Energy Cannon 11 | . 2 . 3 . . 1 . . . . . . . . 1 . . . . . . . . . . . . . . 3 . . . . . . 1 Ballistic Gun 12 | . . . 1 . . . 1 1 . . 2 . . . 1 . 2 . . . . 4 . . . . . . . . . . . . . . . Ballistic Cannon 9 | . . 1 . . . . . . . . 1 . . . . . . . . . . 2 . . 3 . . . . 1 . 1 . . . . . Launcher 11 | . . . 2 . . 1 . 2 . . 2 . . . . 1 . . . . . . . . . 1 . . . . . . . . 1 . 1 Special Weapon 19 | . . . . . . . . . . 1 1 1 . 1 1 . 1 1 . . 2 . . . 2 1 . . . 1 1 1 . 1 . 2 1 Impact Weapon 4 | . 1 . . . . . . . 1 . . . . . . . . . . . . . . 1 . . . . 1 . . . . . . . . Slashing Weapon 7 | . . . 1 1 . 1 . . . . . 1 . . . . . 1 . . 2 . . . . . . . . . . . . . . . . Piercing Weapon 4 | . . . . . . . . . . . . . . . . . . . . . 1 . . 1 1 . . . . 1 . . . . . . . Special Melee Weapon 6 | . . . . . 1 . . . . . . . . 1 . . . . . . 1 . . 2 . 1 . . . . . . . . . . . Unidentified Prototypes 30 | . . . 5 . . . 2 . . . 3 . . . . . 1 . . . 3 1 1 . 1 . . . 2 7 . 1 . . . 1 2 Corrupted Parts 2 | . . . . . . 1 . . . 1 . . . . . . . . . . . . . . . . . . . . . . . . . . . System Corruption 5 | . . . . . . 1 . . . 4 . . . . . . . . . . . . . . . . . . . . . . . . . . . Parts Lost 134 | . 1 2 3 . . 10 . 5 1 6 6 . . 3 6 . 1 6 . 3 9 6 . 5 8 11 3 3 . 7 1 . . . 2 3 23 Power 15 | . . 1 . . . 2 . 1 . . 1 . . . 2 . . 1 . . 1 1 . . . 1 . . . 1 1 . . . . . 2 Propulsion 51 | . . . 1 . . 1 . . 1 3 3 . . 1 2 . . 2 . 2 3 . . 3 4 3 3 2 . 5 . . . . . 1 11 Utility 49 | . 1 . 1 . . 7 . 2 . 2 2 . . 1 2 . . 3 . . 4 3 . 1 3 4 . . . 1 . . . . 2 2 8 Weapon 19 | . . 1 1 . . . . 2 . 1 . . . 1 . . 1 . . 1 1 2 . 1 1 3 . 1 . . . . . . . . 2 Highest Loss Streak 10 | . 1 1 1 . . 2 . 2 1 5 5 . . 1 4 . 1 3 . 3 5 3 . 2 3 3 1 2 . 3 1 . . . 2 2 10 To Critical Strikes 4 | . . . . . . . . . . . . . . . . . . . . . . . . . 1 1 . . . . . . . . . 1 1 Average Backups 17 | . 4 4 7 7 7 7 11 14 14 14 14 14 14 13 14 14 12 14 14 13 3 5 12 21 28 24 26 28 29 28 26 25 25 24 25 23 14 Power 1 | . 1 1 . . . . . . . . . . . . . . . . . . . . 1 3 3 2 2 2 2 2 1 1 . . . 2 2 Propulsion 1 | . . . 1 1 . . . . . . . 1 1 1 . . . . 1 . . . 2 . 1 . 1 3 3 2 1 2 2 3 2 1 1 Utility 9 | . . . . 1 . 3 5 8 10 9 7 6 6 6 6 5 5 6 8 7 1 1 7 12 16 14 16 17 18 15 17 14 14 13 13 11 4 Weapon 4 | . 2 3 4 5 6 3 4 4 3 2 3 3 4 3 4 5 4 4 4 3 1 2 . 2 4 3 3 2 3 5 5 6 5 5 4 4 4 Tool/Special . | . . . . . . . . . . . . . . . . . . . . . . . . . . . . . . . . . . . . . . Unused Backups 35 | . . . 2 . . . . . . . . 1 . 1 . 1 . . . 6 1 . . 7 . . . . 1 3 3 1 4 . 1 . 3 Power 1 | . . . . . . . . . . . . . . . . . . . . . . . . . . . . . . . . . . . . . 1 Propulsion 2 | . . . . . . . . . . . . . . . . . . . . . 1 . . . . . . . . . . . 1 . . . . Utility 27 | . . . . . . . . . . . . 1 . 1 . . . . . 5 . . . 7 . . . . 1 2 3 1 3 . 1 . 2 Weapon 3 | . . . 2 . . . . . . . . . . . . 1 . . . . . . . . . . . . . . . . . . . . . Tool/Special 2 | . . . . . . . . . . . . . . . . . . . . 1 . . . . . . . . . 1 . . . . . . . Average Slot Usage (%) 84 | . 92 98 78 77 86 93 99 96 97 84 90 99 100 95 94 94 96 94 91 78 84 92 73 81 84 82 88 91 90 84 70 70 72 75 75 71 59 Engine 1 | . 7 6 7 11 9 1 5 8 9 9 . . . . . . . . . . . 2 . . . . . . . . . . . . . . . Core 1 | . 6 7 3 . . 2 3 . . . 4 3 . . 5 3 . . . . 4 2 3 . . . . . . . . . . . . . . Reactor 3 | . . . . . . 4 . . . . . 3 7 7 . 2 6 5 5 4 . . 1 5 5 4 4 4 4 3 4 4 4 7 8 8 6 Treads 9 | . . . . . . . 18 27 25 20 2 . . . . . . . . . . 1 15 19 24 7 . . . . 14 20 20 20 19 17 12 Leg 13 | . 22 28 12 . . 25 8 . . . 8 30 30 29 29 29 33 30 29 23 15 23 . . . 18 32 37 38 37 8 . . . . . . Device 3 | . 13 14 11 11 15 15 1 . 8 1 7 . . . . . 1 1 2 1 2 6 . 2 4 1 . . . . . . . 4 4 7 5 Storage 5 | . . . 10 11 9 9 9 9 9 9 7 7 7 7 6 6 6 6 5 4 . . 5 5 5 5 4 4 4 4 4 4 4 4 6 4 5 Processor 1 | . . . . . . . . . . . 6 . . . . . 1 . . . 5 2 5 10 10 5 4 1 . 2 . . . . . . . Hackware 22 | . . . . . . 5 31 24 18 10 9 23 30 27 34 27 17 27 29 29 32 35 31 27 22 27 32 30 28 22 22 26 29 28 24 22 20 Protection 5 | . 12 14 7 11 15 10 2 11 9 15 10 13 7 7 3 9 16 6 5 2 2 1 . 1 2 . . 2 2 3 4 4 4 4 4 4 3 Ballistic Cannon 1 | . . 6 1 . . . . . . . 2 . . . . . . . . . . . . . 3 2 . . . 1 . . . 1 . 3 1 Special Weapon 2 | . . . . . . . . . . 3 . 6 7 5 4 5 4 3 5 4 1 3 4 . 2 3 3 . . 1 2 3 3 4 3 3 1 Impact Weapon 1 | . . . . . . . . . . 8 2 3 . 6 3 5 3 3 5 5 . . . 1 . . . . 2 . 2 4 . . . . 1 Slashing Weapon 2 | . . . 4 9 9 12 12 10 7 2 . 3 7 . 2 . . 2 . . . . . . . . . . . . . . . . . . . Piercing Weapon 1 | . . . . . . . . . . . . . . . . . . . . . 3 3 5 3 3 3 4 4 1 2 2 . 3 2 3 . . Peak Build Rating 208 | 7 9 11 20 18 27 41 40 40 35 34 44 58 57 58 62 71 80 76 77 77 80 84 101 101 112 110 120 118 114 154 159 156 159 179 183 208 204 Average Rating 93 | 3 7 8 15 17 24 31 33 32 31 31 34 52 57 54 56 63 72 70 74 60 65 77 92 89 102 94 110 112 109 139 143 151 158 175 178 191 164 On Entrance 74 | . 7 9 11 16 18 27 26 40 29 33 31 44 57 57 54 54 67 76 71 77 21 79 74 99 93 84 104 117 110 114 140 144 155 159 179 180 186 Naked Turns . | . . . . . . . . . . . . . . . . . . . . . . . . . . . . . . . . . . . . . . Heaviest Build 267 | 10 15 15 25 22 23 38 40 42 43 62 59 61 41 58 58 68 79 67 67 67 16 160 167 187 206 204 172 190 180 214 202 203 199 239 244 267 258 Greatest Support 310 | 10 20 20 25 22 30 62 64 64 64 62 72 86 86 86 91 94 94 89 86 86 100 150 225 225 183 140 195 190 180 193 253 298 298 298 298 310 310 Greatest Overweight (x) 11 | . 1 . 1 1 . . 1 . . 2 11 . . . 1 . . 1 . 1 . 2 . 1 2 3 1 1 . 1 2 . . . . 1 1 Average Overweight (x) . | . . . . . . . . . . . . . . . . . . . . . . . . . 1 1 . . . . . . . . . . . Largest Inventory Capacity 30 | 5 5 5 8 8 8 8 15 15 15 15 15 15 15 15 15 15 15 15 15 15 5 30 30 30 30 30 30 30 30 30 30 30 30 30 30 30 30 Average Capacity 20 | 5 5 5 7 8 8 8 14 15 15 15 15 15 15 15 15 15 15 15 15 13 5 10 30 30 30 30 30 30 30 30 30 30 30 30 30 30 26 Most Carried 30 | 1 5 5 8 8 8 8 15 15 15 15 15 15 14 15 15 15 15 15 15 15 5 15 16 30 30 29 30 30 30 30 30 30 30 30 30 30 24 Average Carried 18 | . 4 4 7 7 6 7 11 14 14 14 14 14 14 13 14 14 12 14 14 12 3 5 14 21 28 24 26 28 29 29 28 28 29 29 29 27 17 Final Capacity 30 | 5 5 5 8 8 8 8 15 15 15 15 15 15 15 15 15 15 15 15 15 5 5 30 30 30 30 30 30 30 30 30 30 30 30 30 30 30 5 Final Carried 30 | 1 5 5 8 8 6 8 15 14 15 14 14 14 14 14 14 15 14 15 14 5 5 15 16 30 27 29 26 30 29 30 30 29 30 30 30 23 3 Class Distribution -------------------- 64% | Botlord-Mutant 13% | Bothacker-Mutant 8% | Mutant 6% | Commander-Mutant 6% | Scavenger-Mutant Dominant Class ---------------- Mutant | -10/Materials Scavenger-Mutant | -10/Mines Mutant | -9/Materials Mutant | -9/Mines Mutant | -8/Materials Scavenger-Mutant | -8/Garrison Commander-Mutant | -8/Materials Commander-Mutant | -8/Garrison Mutant | -8/Materials Bothacker-Mutant | -8/Garrison Bothacker-Mutant | -7/Factory Bothacker-Mutant | -7/Garrison Botlord-Mutant | -7/Factory Botlord-Mutant | -7/Garrison Botlord-Mutant | -6/Factory Botlord-Mutant | -6/Garrison Commander-Mutant | -6/Factory Botlord-Mutant | -6/Garrison Botlord-Mutant | -5/Factory Botlord-Mutant | -5/Waste Bothacker-Mutant | -5/Factory Botlord-Mutant | -5/Garrison Botlord-Mutant | -4/Factory Botlord-Mutant | -4/Garrison Botlord-Mutant | -4/Factory Botlord-Mutant | -4/Garrison Botlord-Mutant | -3/Research Botlord-Mutant | -3/Garrison Botlord-Mutant | -3/Research Botlord-Mutant | -3/Testing Botlord-Mutant | -3/Garrison Botlord-Mutant | -2/Research Botlord-Mutant | -2/Garrison Botlord-Mutant | -1/Access Botlord-Mutant | -1/Garrison Botlord-Mutant | -1/Access Botlord-Mutant | -1/Command Resources | -11 -10 -10 -9 -9 -8 -8 -8 -8 -8 -8 -7 -7 -7 -7 -6 -6 -6 -6 -5 -5 -5 -5 -4 -4 -4 -4 -3 -3 -3 -3 -3 -2 -2 -1 -1 -1 -1 ----------- Run | Yrd Mat Min Mat Min Mat Gar Mat Gar Mat Gar Fac Gar Fac Gar Fac Gar Fac Gar Fac Was Fac Gar Fac Gar Fac Gar Res Gar Res Tes Gar Res Gar Acc Gar Acc Com Matter Collected 20509 | 250 180 94 505 103 . 647 329 338 488 337 1060 346 . 348 338 230 616 570 15 . 425 1213 73 470 387 839 252 181 412 974 1143 245 360 252 985 3310 2194 Remotely . | . . . . . . . . . . . . . . . . . . . . . . . . . . . . . . . . . . . . . . Salvage Created 18321 | 145 799 196 705 39 . 1487 433 354 582 285 1317 274 . 345 353 125 365 397 . . 350 1512 139 275 543 553 177 116 . 834 1431 26 317 . 480 2422 945 Parts 871 | 8 48 18 49 1 . 74 32 33 32 24 71 11 . 27 9 10 7 16 . . 24 59 5 8 19 27 4 8 . 44 54 . 17 . 23 77 32 Haulers Intercepted 14 | . 2 . 4 . . . 1 . 1 . 1 . . . 1 . . . . . 1 . . . 1 . . . . . . . . . . 2 . Recyclers Shooed 9 | 1 1 . . . . . . . . . 4 . . . . . . . . . . . . . . . . . . . . . . . . 2 1 Parts Field Recycled 11 | . . . . . . . . . . . 11 . . . . . . . . . . . . . . . . . . . . . . . . . . Retrieved Matter 143 | . . . . . . . . . . . 143 . . . . . . . . . . . . . . . . . . . . . . . . . . Parts Self-Destructed . | . . . . . . . . . . . . . . . . . . . . . . . . . . . . . . . . . . . . . . Prevented . | . . . . . . . . . . . . . . . . . . . . . . . . . . . . . . . . . . . . . . Kills | -11 -10 -10 -9 -9 -8 -8 -8 -8 -8 -8 -7 -7 -7 -7 -6 -6 -6 -6 -5 -5 -5 -5 -4 -4 -4 -4 -3 -3 -3 -3 -3 -2 -2 -1 -1 -1 -1 ------- Run | Yrd Mat Min Mat Min Mat Gar Mat Gar Mat Gar Fac Gar Fac Gar Fac Gar Fac Gar Fac Was Fac Gar Fac Gar Fac Gar Res Gar Res Tes Gar Res Gar Acc Gar Acc Com Combat Hostiles Destroyed 412 | . 18 11 12 15 . 27 11 12 11 14 24 4 . 10 4 9 9 9 . . 4 22 3 7 4 14 3 7 . 14 21 . 1 . 12 48 52 Melee 104 | . . . 3 . . 23 6 5 1 3 4 1 . 2 2 . . 5 . . 3 5 2 4 2 2 2 . . 8 5 . 1 . 3 7 5 Guns 36 | . . 2 1 . . 1 . 4 5 . 6 2 . 1 . . 2 2 . . . 10 . . . . . . . . . . . . . . . Cannons 105 | . 18 9 5 . . . 1 . . . 8 . . . 2 . . . . . . 1 1 1 1 9 . . . 4 5 . . . 5 23 12 AOE 137 | . . . 3 15 . 3 4 3 4 10 4 1 . 5 . 8 4 . . . 1 6 . 1 1 3 1 7 . . 7 . . . 4 13 29 Classes Destroyed 25 | 2 4 . 3 1 . 6 . 1 1 . . . . . . 1 . . . . 1 . . . . 1 . . . 1 . . . . . . 3 Worker 7 | . . . 1 . . . . . 1 . 1 . . . 1 . . . . . 1 . . . . . . . . . . . . . . 1 1 Builder 5 | . . . 1 . . . 1 . . . 2 . . . . . . . . . . . . . . . . . . . . . . . . 1 . Tunneler 5 | 3 . . . . . . . . . . . . . . . . . . . . . . . . . . . . . . . 1 . . . 1 . Hauler 14 | . 2 . 4 . . . 1 . 1 . 1 . . . 1 . . . . . 1 . . . 1 . . . . . . . . . . 2 . Recycler 13 | 1 . . . . . . . . . . 8 . . . . . 1 . . . . . . . 1 . . . . . . . . . . 1 1 Carrier 1 | . . . . . . . . . . . . . . . . . . . . . . . . . . . . . . . . . . . . . 1 Mechanic 4 | . . . . . . . . . 1 . . . . . . . . . . . . . . . . . . . . . . . . . . . 3 Operator 1 | . . . . . . . . . . . . . . . . . . . . . 1 . . . . . . . . . . . . . . . . Watcher 13 | . 2 . 3 . . 2 . . 3 . . . . . 1 . 1 . . . 1 . . . . . . . . . . . . . . . . Swarmer 93 | . 3 9 3 2 . . 4 2 2 2 9 . . 3 . 4 7 . . . . 9 . 5 . 2 . 6 . . 8 . . . 5 4 4 Cutter 12 | . . . . . . 3 . 2 . 1 . 1 . 2 . . . . . . . . . . . 3 . . . . . . . . . . . Saboteur 8 | . . . . . . . . . . . . . . . . 4 . . . . . . . . . . . . . . . . 1 . . 2 1 Grunt 136 | . 15 2 5 . . 13 2 1 5 1 7 2 . 2 2 1 . 4 . . . 10 1 1 . . . 1 . 5 7 . . . 2 21 26 Brawler 9 | . . . . . . 1 1 . . 1 . 1 . . . . . . . . . . . . . . . . . . . . . . 1 2 2 Duelist 12 | . . . . . . 2 . . . 1 1 . . . . . . . . . . . . . . . . . . . . . . . . 3 5 Protector 3 | . . . . . . . . . . . . . . . . . . . . . . . . . . . . . . . . . . . . . 3 Researcher 2 | . . . . . . . . . . . . . . . . . . . . . . . . . . . . . . 2 . . . . . . . Sentry 28 | . . . 4 . . 4 4 2 4 2 . . . 1 1 . 1 . . . 1 . . 1 1 1 . . . . . . . . . . 1 Demolisher 2 | . . . . . . . . 2 . . . . . . . . . . . . . . . . . . . . . . . . . . . . . Specialist 5 | . . . . . . 1 . . . . . . . . . . . 1 . . . 1 . . 2 . . . . . . . . . . . . Hunter 17 | . . . . . . 1 . . . . 2 . . . . . . 1 . . . 1 . 1 . 2 1 . . 2 2 . . . . 3 1 Programmer 73 | . . . . . . 2 . 3 . 6 5 . . 3 1 . 1 3 . . 3 1 2 . 2 5 2 . . 7 4 . . . 4 12 7 Behemoth 3 | . . . . . . . . . . . . . . . . . . . . . . . . . . 1 . . . . . . . . . 1 1 Striker 1 | . . . . . . . . . . . . . . . . . . . . . . . . . . . . . . . . . . . . . 1 Assembled 13 | . . . . 13 . . . . . . . . . . . . . . . . . . . . . . . . . . . . . . . . . Thug 1 | . . . . . . . . . . . . 1 . . . . . . . . . . . . . . . . . . . . . . . . . Best Kill Streak 15 | 4 5 3 4 13 . 4 5 6 7 10 5 2 . 3 2 8 4 2 . . 3 7 3 2 2 5 1 7 . 3 5 1 1 . 4 7 15 Combat Bots Only 13 | . 5 3 3 13 . 4 4 6 5 10 4 2 . 3 2 8 4 2 . . 2 7 3 2 2 5 1 7 . 3 5 . 1 . 4 7 13 Max Kills in Single Turn 7 | 1 2 1 2 3 . 2 2 2 3 3 3 1 . 3 1 4 3 1 . . 1 3 1 1 1 3 1 4 . 1 3 1 1 . 2 4 7 Gunslinging 1 | . . . . . . . . . . . 1 . . . . . . . . . . . . . . . . . . . . . . . . . . Exploded 6 | . . . 1 3 . 2 2 2 2 3 3 1 . 3 . 4 2 . . . 1 3 . 1 1 3 1 4 . . 3 . . . 2 4 6 Melee 2 | . . . 1 . . 2 1 1 1 1 1 1 . 1 1 . . 1 . . 1 1 1 1 1 1 1 . . 1 1 . 1 . 1 1 1 Uniques/NPCs Destroyed . | . . . . . . . . . . . . . . . . . . . . . . . . . . . . . . . . . . . . . . Combat | -11 -10 -10 -9 -9 -8 -8 -8 -8 -8 -8 -7 -7 -7 -7 -6 -6 -6 -6 -5 -5 -5 -5 -4 -4 -4 -4 -3 -3 -3 -3 -3 -2 -2 -1 -1 -1 -1 -------- Run | Yrd Mat Min Mat Min Mat Gar Mat Gar Mat Gar Fac Gar Fac Gar Fac Gar Fac Gar Fac Was Fac Gar Fac Gar Fac Gar Res Gar Res Tes Gar Res Gar Acc Gar Acc Com Hostile Shots Fired 4134 | . 73 45 50 21 . 151 55 65 70 100 130 46 . 44 130 45 71 137 5 3 80 270 58 106 286 172 38 34 5 172 196 . 39 6 84 539 808 Missed 1225 | . 20 10 16 12 . 49 15 14 24 24 39 11 . 13 42 19 33 35 2 . 41 88 14 29 98 56 13 15 1 50 48 . 16 1 23 125 229 Hits 2909 | . 53 35 34 9 . 102 40 51 46 76 91 35 . 31 88 26 38 102 3 3 39 182 44 77 188 116 25 19 4 122 148 . 23 5 61 414 579 Melee 81 | . . . . 1 . 6 1 1 . 4 8 . . 2 . . 1 . . 3 1 . . . . 3 . 2 . 1 . . 1 . 5 24 17 Projectile 2828 | . 53 35 34 8 . 96 39 50 46 72 83 35 . 29 88 26 37 102 3 . 38 182 44 77 188 113 25 17 4 121 148 . 22 5 56 390 562 AOE 37 | . . . . . . . . 7 . . . 3 . 3 . . . 10 . . 1 . 1 . 3 2 . . . 2 . . . . 1 3 1 Critical Strikes 154 | . . . . . . 3 7 3 4 7 8 . . . 3 . 2 7 1 1 . 6 . 2 3 8 1 2 . 7 10 1 . . 6 20 42 Part Disruptions 16 | . . . . . . 1 . . . . . . . . . . . . . . . 1 . . 4 . . . . 2 1 . 1 . 1 2 3 Damage Taken 49220 | . 593 319 398 193 . 1724 630 1013 512 1323 1586 605 . 820 1446 406 671 1897 46 120 983 2759 1100 1248 1891 2510 534 507 168 2878 3325 76 574 100 1173 5395 9697 Core 5284 | . 163 68 42 49 . 178 101 110 39 103 197 67 . 77 242 58 138 152 . 69 231 307 38 143 201 321 23 38 . 249 259 . . 23 36 171 1391 Absorbed by Shields 11690 | . . . . . . 38 31 . 193 75 . . . . . 6 . 179 17 . . 564 . 250 450 258 . 60 . . 148 . 95 99 654 4970 3603 Reduced by Siege Mode 642 | . . . . . . . . . . . . . . . . . . . . . . . 52 . . . . . . . 38 . . . 25 258 269 Redirected to Shielding 52 | . 43 . . . . . . . . . . 9 . . . . . . . . . . . . . . . . . . . . . . . . . Ignored by Resistances 314 | . . . . . . . . . . . 6 108 . . 10 17 18 155 . . . . . . . . . . . . . . . . . . . Regen/Repaired (Parts) 10946 | . . . . . . . 165 472 149 . . . . . 189 . 266 331 . . 66 . . . 221 . . . . 1236 1824 18 413 10 556 2198 2832 Core Remaining (%) 50 | 100 . 7 . 77 . . . . . 3 . . . 51 . . . 30 . . . 39 . . . 38 . . . . 56 . 100 . . . . Volleys Fired 1156 | 8 40 27 32 9 . 15 8 12 56 13 70 23 1 14 35 19 28 28 3 . 5 81 2 33 27 55 19 6 . 30 41 13 23 18 68 198 96 Largest 2 | 2 2 2 2 1 . 2 1 2 2 1 2 2 1 2 1 2 2 2 1 . 1 2 1 1 2 2 1 1 . 1 1 1 1 1 1 2 1 Hottest 160 | 90 120 120 143 36 . 160 85 61 50 36 68 56 5 56 90 75 69 45 5 . 36 94 47 47 116 116 49 49 . 105 100 58 10 58 58 150 100 Shots Fired 1416 | 16 78 45 50 9 . 22 8 24 82 13 130 32 1 16 34 20 34 30 3 . 5 108 2 33 28 75 19 6 . 30 42 13 23 18 67 205 95 Gun 359 | 16 . 5 18 . . 12 . 22 78 . 80 20 . 4 8 . 12 16 . . . 68 . . . . . . . . . . . . . . . Cannon 558 | . 78 40 25 . . 7 5 . . . 38 . . . 11 . . . . . . 17 1 20 11 48 . . . 28 10 2 . 5 18 131 63 Launcher 105 | . . . 7 9 . 3 3 2 4 9 2 2 . 3 1 3 6 . . . 1 11 . . . 4 2 3 . . 10 . . . 2 5 13 Special 394 | . . . . . . . . . . 4 10 10 1 9 14 17 16 14 3 . 4 12 1 13 17 23 17 3 . 2 22 11 23 13 47 69 19 Kinetic 708 | . . 12 12 . . . . 22 78 . 118 20 . 4 8 . 12 16 . . . 79 1 20 11 48 . . . 22 10 2 . 5 18 128 62 Thermal 183 | 8 78 33 19 . . 19 5 . . . . . . . 11 . . . . . . . . . . . . . . 6 . . . . . 3 1 Explosive 104 | . . . 7 9 . 3 3 2 4 9 2 2 . 3 1 3 6 . . . 1 11 . . . 4 2 3 . . 10 . . . 2 5 12 Electromagnetic 26 | 8 . . 12 . . . . . . . . . . . . . . . . . . 6 . . . . . . . . . . . . . . . Robot Hit Streak 19 | 4 15 5 5 5 . 7 2 5 8 5 8 10 11 2 12 14 5 7 2 . 4 9 2 4 6 6 11 7 . 6 15 13 8 19 10 12 7 Robot Miss Streak 7 | 2 3 4 4 2 . 4 1 5 4 2 3 3 . 2 2 1 3 3 1 . 1 3 . 7 3 4 1 2 . 3 2 1 1 1 2 6 4 Penetration Max 1 | . . . . . . . . . . . 1 1 . . . . . . . . . 1 . . . . . . . . . . . . . . . Secondary Targets 6 | . . . . . . . . . 2 . 1 . . . . . . . . . . 3 . . . . . . . . . . . . . . . Max Gunslinging Chain 1 | . . . . . . . . . 1 . 1 . . . . . . . . . . 1 . . . . . . . . . . . . . . . Shots Hit Robots 1513 | 9 52 24 50 6 . 92 33 28 55 24 106 27 1 21 40 18 41 59 2 . 14 111 5 39 40 54 24 8 2 66 82 13 26 16 58 176 91 Core Hits 633 | 5 24 11 25 20 . 36 17 15 29 21 45 12 . 12 8 10 14 7 . . 8 55 3 10 10 23 8 12 . 12 32 . 5 2 14 61 67 Critical Kills 9 | . . . . . . . . . . . 1 . . 1 . . . 1 . . . . . . . . . . . 1 1 . . . . 2 2 Critical Parts Destroyed 44 | . . . . . . . . . 1 1 1 1 . 1 . . 1 5 . . . 1 . 1 . . . . . 1 10 1 . . . 10 9 Critical Strikes 117 | . . . 3 . . 7 2 . 2 1 8 1 . 2 1 . 2 6 . . 1 6 . 4 3 2 . . . 11 15 1 1 . 4 20 14 Destroy 3 | . . . . . . . . . 1 . 1 . . . . . . . . . . 1 . . . . . . . . . . . . . . . Blast 26 | . . . 1 . . . . . . . 6 . . . . . . . . . . . . 1 . 1 . . . 1 2 . . . 3 8 3 Smash 51 | . . . . . . . . . . 1 1 1 . 2 . . 2 6 . . . . . 1 . . . . . 2 11 1 . . . 12 11 Sever 13 | . . . 2 . . 7 2 . 1 . . . . . 1 . . . . . . . . . . . . . . . . . . . . . . Impale 24 | . . . . . . . . . . . . . . . . . . . . . 1 5 . 2 3 1 . . . 8 2 . 1 . 1 . . Melee Attacks 1160 | . 6 . 31 . . 197 35 60 14 41 30 44 . 70 20 8 25 83 1 . 28 51 10 34 25 19 11 8 4 75 68 2 22 . 21 60 57 Impact 427 | . 6 . 2 . . . . . 4 23 30 37 . 62 6 7 16 74 1 . 1 . . 3 . . . . 1 5 45 2 1 . . 46 55 Slashing 353 | . . . 29 . . 185 20 51 10 18 . 7 . 1 14 1 . 9 . . 8 . . . . . . . . . . . . . . . . Piercing 267 | . . . . . . . . . . . . . . . . . . . . . 17 51 10 12 22 16 10 3 . 45 23 . 21 . 21 14 2 Sneak Attacks 111 | . . . 5 . . 10 14 5 3 . 2 . . 10 3 1 13 2 . . 3 4 . 2 1 . . . . 25 1 1 . . 2 3 1 Combat Hostiles 25 | . . . 1 . . 3 . . 1 . . . . 3 1 1 3 2 . . . 4 . 2 . . . . . . 1 . . . 2 . 1 Follow-up Attacks 29 | . . . . . . 4 3 . 1 4 . . . . . . . 6 . . . . . . . 1 . . . 1 4 . . . . 4 1 Damage Inflicted 72041 | 116 1023 419 1802 957 . 3083 1201 729 1603 1513 3303 905 . 1117 1174 677 1386 2142 . . 554 4070 136 508 1348 2229 525 1085 . 2856 5594 240 806 146 2216 10205 16373 Guns 4657 | 116 . 26 174 . . 103 . 258 807 . 1057 297 . 59 111 . 198 226 . . . 1225 . . . . . . . . . . . . . . . Cannons 15714 | . 945 389 291 . . 120 129 . . . 856 . . . 323 . . . . . . 541 39 268 300 1260 . . . 1278 947 125 . 146 733 4119 2905 Explosions 25452 | . . . 359 957 . 271 434 236 361 952 317 142 . 541 78 558 508 . . . 65 540 . . 111 441 242 1085 . . 1064 . . . 1048 3655 11487 Melee 25982 | . 78 . 972 . . 2589 638 235 435 561 1073 466 . 517 633 119 674 1916 . . 487 1764 81 240 937 528 283 . . 1542 3562 115 806 . 376 2374 1981 Ramming 236 | . . 4 6 . . . . . . . . . . . 29 . 6 . . . 2 . 16 . . . . . . 36 21 . . . 59 57 . Kinetic 17840 | . . 107 107 . . . . 258 807 . 1913 297 . 59 111 . 198 226 . . . 1637 39 268 300 1260 . . . 1278 947 125 . 146 733 4119 2905 Thermal 2342 | 37 945 308 266 . . 223 129 . . . . . . . 323 . . . . . . . . . 111 . . . . . . . . . . . . Explosive 25341 | . . . 359 957 . 271 434 236 361 952 317 142 . 541 78 558 508 . . . 65 540 . . . 441 242 1085 . . 1064 . . . 1048 3655 11487 Electromagnetic 300 | 79 . . 92 . . . . . . . . . . . . . . . . . . 129 . . . . . . . . . . . . . . . Impact 11507 | . 78 . . . . . . . 172 364 1073 148 . 517 186 119 674 1696 . . . . . 74 . . . . . 279 1918 115 . . . 2181 1913 Slashing 6107 | . . . 972 . . 2589 638 235 263 197 . 318 . . 447 . . 220 . . 228 . . . . . . . . . . . . . . . . Piercing 8368 | . . . . . . . . . . . . . . . . . . . . . 259 1764 81 166 937 528 283 . . 1263 1644 . 806 . 376 193 68 Highest Corruption 37 | . 2 2 . . . 1 1 7 7 16 2 2 2 4 5 5 6 15 . 8 18 19 . . . . . . . 3 25 1 4 . 4 18 37 Average Corruption 8 | . 2 2 . . . 1 1 3 7 13 1 2 2 2 3 5 5 13 . 8 15 18 . . . . . . . 2 17 1 2 . 3 6 27 Corruption Purged 10 | . . . . . . . . . . . . . . . . . . . . . . . . . . . . . . . . . . . . 10 . Corruption Blocked 27 | . . . . . . . . . . . . . . . . . . . . . . . 6 . . 6 1 . . 14 . . . . . . . Effects 753 | . 7 10 . . . 1 7 25 31 39 17 14 2 21 13 22 36 58 . 2 57 84 . . . . . . . 8 51 1 23 . 25 108 91 Message Errors 179 | . 1 5 . . . . 1 4 5 9 3 1 . 3 2 6 7 16 . . 14 22 . . . . . . . 1 14 . 6 . 6 26 27 Matter Fused 179 | . 3 1 . . . 1 4 6 6 8 7 2 . 6 3 5 8 12 . 1 13 26 . . . . . . . 3 6 . 9 . 5 21 23 Heat Flow Errors 84 | . 2 1 . . . . 1 5 4 6 2 2 . 2 1 3 7 9 . 1 3 4 . . . . . . . 1 6 . 4 . 3 12 5 Energy Discharges 87 | . . 1 . . . . . 3 4 4 . 4 1 6 3 2 5 7 . . 9 6 . . . . . . . 2 6 . . . 2 17 5 Parts Rejected 14 | . . . . . . . . . 1 . . . . 1 . 1 . 1 . . 1 1 . . . . . . . . 2 . . . 1 3 2 Parts Fused 5 | . . . . . . . . . . 1 1 . . . . 1 . . . . . 1 . . . . . . . . 1 . . . . . . Data Loss (minor) 108 | . . . . . . . 1 4 4 6 1 1 . 2 3 2 8 9 . . 10 14 . . . . . . . . 8 1 4 . 5 13 12 Data Loss (major) 35 | . . . . . . . . 1 3 3 . 2 1 . . 1 . 3 . . 3 3 . . . . . . . . 5 . . . 2 7 1 Misfires 15 | . . 2 . . . . . 1 2 . 2 . . 1 . . . . . . . 1 . . . . . . . . 1 . . . . 4 1 Alerts 15 | . 1 . . . . . . 1 1 2 1 2 . . . 1 1 . . . . . . . . . . . . 1 . . . . . 3 1 Misdirections 20 | . . . . . . . . . . . . . . . . . . . . . 4 1 . . . . . . . . 2 . . . . 1 12 Weapon Failures 12 | . . . . . . . . . 1 . . . . . 1 . . 1 . . . 5 . . . . . . . . . . . . 1 1 2 Overload Shots 3 | . . . . . . . . . . . . . . . . . . . . . . . . . . . . . . . . . . . . 3 . Overflow Damage 7330 | . . 45 73 30 . 63 65 . 30 170 108 163 . 213 117 72 311 572 . . 81 45 . 55 130 101 . 114 . 616 1016 115 . . 145 1187 1693 Projectiles 1071 | . . 45 9 . . 12 15 . . . 26 . . . 61 . . . . . . 24 . 20 48 65 . . . 179 248 . . . 32 192 95 Explosions 1347 | . . . . 30 . 19 . . . 78 . . . . 6 44 33 . . . . . . . . 5 . 114 . . 18 . . . 17 88 895 Melee 4912 | . . . 64 . . 32 50 . 30 92 82 163 . 213 50 28 278 572 . . 81 21 . 35 82 31 . . . 437 750 115 . . 96 907 703 Knockbacks 150 | . . 1 . . . . . . 2 . 9 . . 4 2 . 4 5 . . . 2 . 2 3 5 . . . 5 19 1 . . 6 52 28 Impact 64 | . . . . . . . . . 2 . 3 . . 4 2 . 4 5 . . . . . . . . . . . . 9 . . . 1 18 16 Kinetic 77 | . . 1 . . . . . . . . 6 . . . . . . . . . . 2 . 2 3 5 . . . 5 6 1 . . 5 29 12 Secondary 9 | . . . . . . . . . . . . . . . . . . . . . . . . . . . . . . . 4 . . . . 5 . Self-Inflicted Damage 1017 | . . . . 83 . 91 . 28 . 281 . 45 . 90 . 17 46 . . . . 40 . . . 96 . 56 . . 71 . . . . 73 . Shots 27 | . . . . 2 . 2 . 1 . 8 . 1 . 2 . 1 1 . . . . 2 . . . 2 . 1 . . 3 . . . . 1 . Rammed 7 | . . . . . . . . . . . . . . . . . . . . . . . 2 . . . . . . . 1 . . . 1 3 . Targets Rammed 19 | . . 2 1 . . . . . . . . . . . 3 . 2 . . . 1 . 2 . . . . . . 2 1 . . . 1 4 . Kicked 11 | . . 2 1 . . . . . . . . . . . 3 . 2 . . . 1 . . . . . . . . 2 . . . . . . . Crushed 1 | . . . . . . . . . . . . . . . . . . . . . . . . . . . . . . . . . . . . 1 . Highest Temperature 496 | 90 237 207 109 31 . 406 496 273 273 278 226 282 . 197 252 273 282 265 . 100 316 270 5 . 15 78 . 2 . 208 308 . 205 40 147 353 331 Average Temperature 73 | 38 86 39 44 8 . 159 167 94 48 96 47 85 . 85 110 117 100 88 . 57 129 83 5 . 10 29 . 2 . 60 123 . 91 21 44 60 93 Received Heat Transfer 6637 | . 288 36 171 40 . 680 241 90 197 261 351 150 . 147 324 60 57 291 32 . 135 574 84 158 17 206 45 21 12 277 195 . 84 20 89 359 945 Effects 21 | . 3 . . . . 2 3 . . 2 . . . . . . . . . . 1 . . . . . . . . . 1 . . . . 7 2 Shutdowns 3 | . . . . . . 1 1 . . . . . . . . . . . . . . . . . . . . . . . . . . . . 1 . Energy Bleed 4 | . . . . . . . 1 . . . . . . . . . . . . . . . . . . . . . . . . . . . . 2 1 Interference 9 | . 3 . . . . . . . . 2 . . . . . . . . . . . . . . . . . . . . 1 . . . . 3 . Matter Decay 1 | . . . . . . . 1 . . . . . . . . . . . . . . . . . . . . . . . . . . . . . . Short Circuit 3 | . . . . . . 1 . . . . . . . . . . . . . . 1 . . . . . . . . . . . . . . . 1 Damage (minor) 1 | . . . . . . . . . . . . . . . . . . . . . . . . . . . . . . . . . . . . 1 . Siege Activations 10 | . . . . . . . . . . . . . . . . . . . . . . . 1 . . . . . . . 1 . . 1 1 3 3 Total Turns 287 | . . . . . . . . . . . . . . . . . . . . . . . 6 . . . . . . . 22 . . 4 13 75 167 Longest Duration 130 | . . . . . . . . . . . . . . . . . . . . . . . 6 . . . . . . . 22 . . 4 13 39 130 Martial Activations . | . . . . . . . . . . . . . . . . . . . . . . . . . . . . . . . . . . . . . . Shielding Activations . | . . . . . . . . . . . . . . . . . . . . . . . . . . . . . . . . . . . . . . Robots Disrupted . | . . . . . . . . . . . . . . . . . . . . . . . . . . . . . . . . . . . . . . Combat Hostiles . | . . . . . . . . . . . . . . . . . . . . . . . . . . . . . . . . . . . . . . Robots Corrupted 33 | . . . . . . . . . 1 1 2 . . 2 . 1 5 2 . . . . . 1 . . . . . 2 4 . . . . 7 5 Combat Hostiles 29 | . . . . . . . . . 1 1 2 . . 2 . 1 3 2 . . . . . 1 . . . . . 2 4 . . . . 5 5 Parts Fried 57 | . . . . . . . . . 2 . 3 . . 8 . . 5 3 . . . 2 . . . . . . . 5 6 2 . . . 13 8 Impact Corruptions 130 | . . . . . . . . . 1 4 3 2 . 7 1 1 9 21 . . . . . 1 . . . . . 2 25 1 . . . 27 25 Robots Melted . | . . . . . . . . . . . . . . . . . . . . . . . . . . . . . . . . . . . . . . Combat Hostiles . | . . . . . . . . . . . . . . . . . . . . . . . . . . . . . . . . . . . . . . Parts Melted 12 | . 6 2 . . . . . . . . . 1 . . . . . . . . . . 1 . . . 2 . . . . . . . . . . Heat Transferred 4133 | 111 1998 666 481 . . 333 148 . . . . . . . 296 . . . . . . . . . 100 . . . . . . . . . . . . Parts Sabotaged 2 | . . . . . . . . . . . . . . . . . . . . . . . . . . . . . . . . . 1 . . 1 . Parts Stolen . | . . . . . . . . . . . . . . . . . . . . . . . . . . . . . . . . . . . . . . Parts Stripped . | . . . . . . . . . . . . . . . . . . . . . . . . . . . . . . . . . . . . . . Power Chain Reactions . | . . . . . . . . . . . . . . . . . . . . . . . . . . . . . . . . . . . . . . Alert | -11 -10 -10 -9 -9 -8 -8 -8 -8 -8 -8 -7 -7 -7 -7 -6 -6 -6 -6 -5 -5 -5 -5 -4 -4 -4 -4 -3 -3 -3 -3 -3 -2 -2 -1 -1 -1 -1 ------- Run | Yrd Mat Min Mat Min Mat Gar Mat Gar Mat Gar Fac Gar Fac Gar Fac Gar Fac Gar Fac Was Fac Gar Fac Gar Fac Gar Res Gar Res Tes Gar Res Gar Acc Gar Acc Com Maximum Alert Level 5 | . 1 . . . . 4 3 4 3 2 1 3 2 5 3 5 4 5 4 2 1 4 3 3 3 4 3 3 2 1 3 2 3 2 5 5 5 Low Security (%) 23 | 100 74 100 100 100 100 21 9 1 . . 70 21 . . . . 5 . . . 35 19 . . . . 70 51 . 97 23 46 22 . . 11 . Level 1 12 | . 25 . . . . 22 40 12 . 33 29 8 . 2 . . 5 . . . 64 16 . 30 23 . 1 . 80 2 19 . 10 . 1 1 . Level 2 23 | . . . . . . 11 42 17 83 65 . 40 100 19 . 17 25 . . 100 . 20 94 53 66 9 . 16 20 . 28 53 55 100 21 8 . Level 3 18 | . . . . . . 40 7 30 16 . . 29 . 12 100 20 58 11 . . . 18 5 15 10 57 27 31 . . 28 . 11 . 13 19 . Level 4 13 | . . . . . . 3 . 38 . . . . . 42 . 43 3 23 100 . . 25 . . . 33 . . . . . . . . 43 23 52 Level 5 7 | . . . . . . . . . . . . . . 22 . 17 . 65 . . . . . . . . . . . . . . . . 18 35 5 High Security 1 | . . . . . . . . . . . . . . . . . . . . . . . . . . . . . . . . . . . . . 42 Max Security . | . . . . . . . . . . . . . . . . . . . . . . . . . . . . . . . . . . . . . . Sterilizations 1 | . . . . . . . . . . . . . . . . . . . . . . . . . . . . . . . . . . . . 1 . Peak Influence 2502 | 10 281 195 168 132 6 1224 761 1383 942 667 350 916 480 1715 953 1797 1345 2348 1413 488 315 1356 711 781 756 1463 822 730 410 256 994 638 801 528 1706 2502 2413 Initial 1591 | . 3 105 29 45 . 3 596 154 674 266 350 81 480 315 900 553 942 937 1232 488 299 99 711 331 409 467 822 18 410 153 65 558 98 480 376 1023 1591 Average 714 | 3 106 104 80 58 2 567 421 946 550 415 126 538 465 1198 855 1184 718 1849 1373 467 214 672 564 498 543 1062 286 372 356 105 502 354 458 479 1089 1323 1730 Influence Increases 33854 | 20 536 260 493 147 10 1446 934 1429 584 601 862 915 . 1550 575 1274 1706 1721 193 . 553 1417 152 880 1504 1226 259 842 92 1041 1019 445 913 325 1950 4448 1532 Destroy 0b10 Robot/C 15080 | . 360 220 240 40 . 640 500 620 360 380 500 420 . 640 320 600 660 780 100 . 220 700 80 360 640 440 120 280 30 465 420 120 255 105 735 1905 825 Destroy 0b10 Robot/NC 613 | 20 20 . 45 . . 25 15 . 40 . 60 5 . . 25 5 60 . . . 35 30 . . 10 5 5 . 8 12 24 20 12 8 . 92 32 Destroy Leader 2118 | . 78 40 74 10 . 30 124 40 112 40 132 40 . 40 66 40 136 50 10 . 54 20 10 50 112 60 12 20 18 76 40 34 40 24 56 294 136 Allied During Kill 7252 | . . . . . . 33 171 208 28 23 6 118 . 504 123 329 594 528 61 . 17 53 9 131 464 132 74 300 34 202 152 174 307 137 791 1505 44 Successful Hack 386 | . 17 . 22 . 10 15 24 . . . 44 14 . . . . 15 . . . 40 12 24 7 . 16 . . . 60 . 34 11 21 . . . Select Force Hacks 110 | . 60 . 30 . . . . . . . . . . . 20 . . . . . . . . . . . . . . . . . . . . . . Disable Machine 621 | . . . . 15 . . 45 15 . . 45 . . 15 15 15 75 . . . . . 15 . 90 15 . 45 . 96 . . . 12 . 108 . Anti-Garrison Action 3719 | . . . . . . 450 . 350 . 50 . 250 . 200 . 200 . 200 . . . 450 . 300 . 400 . 150 . . 189 . 265 . 265 . . Destroy Structure 2830 | . 1 . 37 67 . 163 55 196 44 78 15 68 . 151 6 85 151 163 22 . 52 77 14 17 98 143 48 47 2 70 158 63 23 6 103 448 159 Partial Spotted 114 | . . . 30 15 . . . . . . . . . . . . 15 . . . 15 . . 15 . . . . . . . . . 12 . . 12 Lose Combat Pursuer 1011 | . . . 15 . . 90 . . . 30 60 . . . . . . . . . 120 75 . . 90 15 . . . 60 36 . . . . 96 324 Influence Decreases 31441 | 15 270 456 450 265 4 228 1920 284 1557 344 1413 115 466 285 1499 268 2164 712 1146 967 839 203 1035 572 1617 431 1697 137 550 1226 112 1308 243 655 715 3667 1606 Entered New Map 12216 | . 2 166 46 73 . 3 628 84 709 144 317 35 436 135 815 238 855 402 1116 907 129 43 645 142 372 201 641 7 320 119 22 436 33 321 95 683 896 Time Decay 7662 | 15 258 270 374 192 4 . 482 . 368 . 531 . 30 . 434 . 559 . 30 30 470 . 350 . 550 . 318 . 100 617 . 362 . 254 . 684 380 Lost Part 1336 | . 10 20 30 . . 100 . 50 10 60 60 . . 30 60 . 10 60 . 30 90 60 . 50 80 110 26 30 . 70 10 . . . 20 30 230 Lost Ally 5177 | . . . . . . 125 60 150 20 140 80 80 . 120 190 30 40 250 . . 150 100 40 380 340 120 112 100 130 270 80 60 210 80 600 1020 100 Purge Threat 5050 | . . . . . . . 750 . 450 . 425 . . . . . 700 . . . . . . . 275 . 600 . . 150 . 450 . . . 1250 . Squads Dispatched 142 | . 5 . 1 . . . 4 . 3 . 11 . . . 5 . 7 . . . 7 . 6 . 12 . 4 . 2 11 . 1 . 2 . 33 28 Investigation 12 | . 3 . 1 . . . 2 . 2 . 2 . . . 1 . . . . . 1 . . . . . . . . . . . . . . . . Extermination 32 | . . . . . . . . . . . 4 . . . 1 . 3 . . . 1 . 1 . 3 . 1 . . 4 . 1 . 1 . 10 2 Reinforcement 44 | . 2 . . . . . 2 . 1 . 4 . . . . . 3 . . . 4 . 1 . 9 . 3 . 2 6 . . . 1 . 6 . Assault 43 | . . . . . . . . . . . . . . . 3 . 1 . . . . . 3 . . . . . . . . . . . . 10 26 Garrison 11 | . . . . . . . . . . . 1 . . . . . . . . . 1 . 1 . . . . . . 1 . . . . . 7 . Intercept . | . . . . . . . . . . . . . . . . . . . . . . . . . . . . . . . . . . . . . . Searches Triggered . | . . . . . . . . . . . . . . . . . . . . . . . . . . . . . . . . . . . . . . Construction Impeded 3 | . . . . . . . . . 1 . 1 . . . . . . . . . 1 . . . . . . . . . . . . . . . . Haulers Reinforced 6 | . . . . . . . . . . . . . . . . . 1 . . . . . . . 1 . . . . . . . . 1 . 3 . Active Scanning Responses . | . . . . . . . . . . . . . . . . . . . . . . . . . . . . . . . . . . . . . . Cargo Convoy Interrupts 1 | . . . . . . . . . . . . . . . . . . . . . . . . . 1 . . . . . . . . . . . . Stealth | -11 -10 -10 -9 -9 -8 -8 -8 -8 -8 -8 -7 -7 -7 -7 -6 -6 -6 -6 -5 -5 -5 -5 -4 -4 -4 -4 -3 -3 -3 -3 -3 -2 -2 -1 -1 -1 -1 --------- Run | Yrd Mat Min Mat Min Mat Gar Mat Gar Mat Gar Fac Gar Fac Gar Fac Gar Fac Gar Fac Was Fac Gar Fac Gar Fac Gar Res Gar Res Tes Gar Res Gar Acc Gar Acc Com Distress Signals 34 | . 1 1 2 . . 3 1 . 5 . . . . . 2 2 . . . . 3 . . . 6 . 1 . 1 . . . . 1 . 4 1 Communications Jammed 908 | . . . . . . . . . . . . . . . . . . . . . . . . . 17 . 60 . . 21 . . . . . 767 43 Distress Signals 907 | . . . . . . . . . . . . . . . . . . . . . . . . . 17 . 60 . . 20 . . . . . 767 43 Times Spotted 1257 | . 27 11 25 21 . 44 29 33 21 21 38 27 . 33 28 32 36 44 7 6 36 40 21 46 48 42 14 19 7 42 48 7 35 11 70 170 118 Peak Tracking Total 18 | . 5 3 5 14 . 7 5 4 7 10 6 7 . 5 8 4 4 9 5 6 7 8 15 5 7 6 4 8 5 8 5 3 8 2 18 7 16 Tactical Retreats 48 | . . . 1 1 . 3 . . . 2 3 . . . . . . . . . 4 4 . . 3 1 . . . 4 3 . . . . 5 14 Traps | -11 -10 -10 -9 -9 -8 -8 -8 -8 -8 -8 -7 -7 -7 -7 -6 -6 -6 -6 -5 -5 -5 -5 -4 -4 -4 -4 -3 -3 -3 -3 -3 -2 -2 -1 -1 -1 -1 ------- Run | Yrd Mat Min Mat Min Mat Gar Mat Gar Mat Gar Fac Gar Fac Gar Fac Gar Fac Gar Fac Was Fac Gar Fac Gar Fac Gar Res Gar Res Tes Gar Res Gar Acc Gar Acc Com Traps Triggered 47 | . 2 . 1 . . 6 . . . 1 1 2 . 2 1 2 1 2 1 . 1 3 1 3 . 6 1 . . . 2 . 2 . 4 2 . Indirectly . | . . . . . . . . . . . . . . . . . . . . . . . . . . . . . . . . . . . . . . Trap Hack Attempts 58 | . . . . . . . . 34 . . . . . . . . . . . . . . . . . . . 1 . 23 . . . . . . . Triggered . | . . . . . . . . . . . . . . . . . . . . . . . . . . . . . . . . . . . . . . Disarmed 5 | . . . . . . . . 4 . . . . . . . . . . . . . . . . . . . . . 1 . . . . . . . Reprogrammed 3 | . . . . . . . . 1 . . . . . . . . . . . . . . . . . . . . . 2 . . . . . . . Reused . | . . . . . . . . . . . . . . . . . . . . . . . . . . . . . . . . . . . . . . Traps Extracted . | . . . . . . . . . . . . . . . . . . . . . . . . . . . . . . . . . . . . . . Installed . | . . . . . . . . . . . . . . . . . . . . . . . . . . . . . . . . . . . . . . Triggered . | . . . . . . . . . . . . . . . . . . . . . . . . . . . . . . . . . . . . . . Machines | -11 -10 -10 -9 -9 -8 -8 -8 -8 -8 -8 -7 -7 -7 -7 -6 -6 -6 -6 -5 -5 -5 -5 -4 -4 -4 -4 -3 -3 -3 -3 -3 -2 -2 -1 -1 -1 -1 ---------- Run | Yrd Mat Min Mat Min Mat Gar Mat Gar Mat Gar Fac Gar Fac Gar Fac Gar Fac Gar Fac Was Fac Gar Fac Gar Fac Gar Res Gar Res Tes Gar Res Gar Acc Gar Acc Com Machines Disabled 108 | . . . . 1 . 6 3 6 . 1 3 5 . 5 1 7 5 3 . . . 5 1 4 6 6 . 6 . 9 4 . 5 1 5 10 . Max in Single Turn 2 | . . . . 1 . 1 1 1 . 1 1 1 . 1 . 1 1 1 . . . 1 . 1 2 1 . 2 . 1 1 . 1 . 1 1 . Garrison Access 1 | . . . . . . . . . . . 1 . . . . . . . . . . . . . . . . . . . . . . . . . . Garrison Relay 54 | . . . . . . 5 . 4 . 1 . 4 . 4 . 4 . 2 . . . 5 . 4 . 5 . 3 . . 3 . 5 . 5 . . Phase Generator 1 | . . . . . . . . . . . . 1 . . . . . . . . . . . . . . . . . . . . . . . . . Machines Repaired . | . . . . . . . . . . . . . . . . . . . . . . . . . . . . . . . . . . . . . . Machines Dismantled 1 | . . . . . . . . . . . . 1 . . . . . . . . . . . . . . . . . . . . . . . . . Machines Sabotaged . | . . . . . . . . . . . . . . . . . . . . . . . . . . . . . . . . . . . . . . Overloaded Fab Kills . | . . . . . . . . . . . . . . . . . . . . . . . . . . . . . . . . . . . . . . Hacking | -11 -10 -10 -9 -9 -8 -8 -8 -8 -8 -8 -7 -7 -7 -7 -6 -6 -6 -6 -5 -5 -5 -5 -4 -4 -4 -4 -3 -3 -3 -3 -3 -2 -2 -1 -1 -1 -1 --------- Run | Yrd Mat Min Mat Min Mat Gar Mat Gar Mat Gar Fac Gar Fac Gar Fac Gar Fac Gar Fac Was Fac Gar Fac Gar Fac Gar Res Gar Res Tes Gar Res Gar Acc Gar Acc Com Machines Accessed 120 | . 4 1 7 1 2 3 10 5 8 . 14 4 1 1 5 2 5 . . . 4 2 7 2 3 3 3 1 1 10 . 3 2 1 4 . 1 Terminals 87 | . 2 . 6 1 1 3 9 5 7 . 11 4 . 1 2 2 3 . . . . 2 3 2 1 3 1 1 1 7 . 2 2 . 4 . 1 Fabricators 6 | . . . . . . . . . . . 1 . . . 2 . . . . . 1 . 1 . . . . . . 1 . . . . . . . Repair Stations 6 | . . . . . . . . . . . . . . . . . 1 . . . 1 . 1 . 1 . 1 . . 1 . . . . . . . Recycling Units 3 | . 2 . 1 . . . . . . . . . . . . . . . . . . . . . . . . . . . . . . . . . . Scanalyzers 2 | . . . . . . . . . . . . . . . . . . . . . 1 . 1 . . . . . . . . . . . . . . Garrison Access 15 | . . . . . 1 . 1 . 1 . 2 . 1 . 1 . 1 . . . 1 . 1 . 1 . 1 . . 1 . 1 . 1 . . . Total Hacks 293 | . 7 1 22 4 8 4 28 10 26 . 36 13 3 1 11 3 10 . . . 16 6 10 3 5 8 5 4 2 24 . 6 6 2 8 . 1 Successful 115 | . 5 1 11 1 2 2 14 3 12 . 15 2 1 1 3 . 4 . . . 8 1 4 1 2 1 1 1 . 11 . 3 1 2 2 . . Failed 177 | . 2 . 10 3 6 2 14 7 14 . 21 11 2 . 8 3 6 . . . 8 5 6 2 3 7 4 3 2 13 . 3 5 . 6 . 1 Catastrophic 38 | . . . 2 . . 1 3 1 2 . 3 2 2 . 1 1 1 . . . 2 . 5 1 1 2 . . . 3 . . 1 . 3 . 1 Database Lockouts 1 | . . . 1 . . . . . . . . . . . . . . . . . . . . . . . . . . . . . . . . . . Manual 158 | . 6 . 21 4 6 2 19 2 18 . 22 1 2 . 8 . 5 . . . 1 . 3 2 4 1 4 . 2 13 . 3 1 1 6 . 1 Terminals 223 | . 5 . 21 4 6 4 26 10 22 . 30 13 . 1 4 3 7 . . . . 6 3 3 1 8 1 4 2 20 . 4 6 . 8 . 1 Fabricators 11 | . . . . . . . . . . . 3 . . . 4 . . . . . 2 . 1 . . . . . . 1 . . . . . . . Repair Stations 13 | . . . . . . . . . . . . . . . . . 1 . . . 5 . 3 . 1 . 2 . . 1 . . . . . . . Recycling Units 3 | . 2 . 1 . . . . . . . . . . . . . . . . . . . . . . . . . . . . . . . . . . Scanalyzers 9 | . . . . . . . . . . . . . . . . . . . . . 7 . 2 . . . . . . . . . . . . . . Garrison Access 33 | . . . . . 2 . 2 . 4 . 3 . 3 . 3 . 2 . . . 2 . 1 . 3 . 2 . . 2 . 2 . 2 . . . Terminal Hacks 43 | . 1 1 4 1 1 2 6 3 4 . 5 2 . 1 . . . . . . . 1 . 1 . 1 . 1 . 5 . . 1 . 2 . . Part Schematic 1 | . . . . . . . . . . . . . . . . . . . . . . . . . . . . . . 1 . . . . . . . Robot Analysis 5 | . . . 1 1 1 . 1 . . . 1 . . . . . . . . . . . . . . . . . . . . . . . . . . Open Door 8 | . . 1 . . . 1 . 1 . . . 1 . . . . . . . . . . . 1 . . . 1 . 1 . . . . 1 . . Branch Access Points 1 | . . . . . . . . . . . . . . . . . . . . . . . . . . . . . . 1 . . . . . . . Emergency Access Points 2 | . . . . . . 1 . . . . . . . . . . . . . . . 1 . . . . . . . . . . . . . . . Terminal Index 3 | . . . 1 . . . 1 . . . . . . . . . . . . . . . . . . . . . . 1 . . . . . . . Unreport Threat 7 | . . . . . . . 2 . 3 . 1 . . . . . . . . . . . . . . . . . . 1 . . . . . . . Locate Traps 1 | . . . . . . . . . . . 1 . . . . . . . . . . . . . . . . . . . . . . . . . . Recall Investigation 1 | . . . . . . . 1 . . . . . . . . . . . . . . . . . . . . . . . . . . . . . . Registered Prototypes 1 | . . . . . . . 1 . . . . . . . . . . . . . . . . . . . . . . . . . . . . . . Zone Layout 6 | . 1 . 2 . . . . . 1 . 2 . . . . . . . . . . . . . . . . . . . . . . . . . . Garrison Registry 2 | . . . . . . . . 1 . . . . . 1 . . . . . . . . . . . . . . . . . . . . . . . Patrol Navigation 3 | . . . . . . . . . . . . 1 . . . . . . . . . . . . . . . . . . . . 1 . 1 . . Security Stations 2 | . . . . . . . . 1 . . . . . . . . . . . . . . . . . 1 . . . . . . . . . . . Fabricator Hacks 4 | . . . . . . . . . . . . . . . 1 . . . . . 1 . 1 . . . . . . 1 . . . . . . . Network Status 2 | . . . . . . . . . . . . . . . . . . . . . 1 . 1 . . . . . . . . . . . . . . Build 2 | . . . . . . . . . . . . . . . 1 . . . . . . . . . . . . . . 1 . . . . . . . Repair Station Hacks 3 | . . . . . . . . . . . . . . . . . . . . . 2 . 1 . . . . . . . . . . . . . . Scan Component 2 | . . . . . . . . . . . . . . . . . . . . . 1 . 1 . . . . . . . . . . . . . . Repair 1 | . . . . . . . . . . . . . . . . . . . . . 1 . . . . . . . . . . . . . . . . Recycling Unit Hacks . | . . . . . . . . . . . . . . . . . . . . . . . . . . . . . . . . . . . . . . Scanalyzer 4 | . . . . . . . . . . . . . . . . . . . . . 3 . 1 . . . . . . . . . . . . . . Insert Component 3 | . . . . . . . . . . . . . . . . . . . . . 2 . 1 . . . . . . . . . . . . . . Analyze 1 | . . . . . . . . . . . . . . . . . . . . . 1 . . . . . . . . . . . . . . . . Garrison Access Hacks 15 | . . . . . 1 . 1 . 1 . 2 . 1 . 1 . 1 . . . 1 . 1 . 1 . 1 . . 1 . 1 . 1 . . . Unlock Access 14 | . . . . . 1 . 1 . 1 . 1 . 1 . 1 . 1 . . . 1 . 1 . 1 . 1 . . 1 . 1 . 1 . . . Seal Access 1 | . . . . . . . . . . . 1 . . . . . . . . . . . . . . . . . . . . . . . . . . Unauthorized Hacks 46 | . 4 . 7 . . . 7 . 7 . 8 . . . 1 . 3 . . . 1 . . . 1 . . . . 4 . 2 . 1 . . . Terminals 37 | . 2 . 6 . . . 7 . 7 . 7 . . . . . 2 . . . . . . . . . . . . 4 . 2 . . . . . Botnet 37 | . 2 . 6 . . . 7 . 7 . 7 . . . . . 2 . . . . . . . . . . . . 4 . 2 . . . . . Fabricators 1 | . . . . . . . . . . . . . . . 1 . . . . . . . . . . . . . . . . . . . . . . Download 1 | . . . . . . . . . . . . . . . 1 . . . . . . . . . . . . . . . . . . . . . . Repair Stations 2 | . . . . . . . . . . . . . . . . . 1 . . . . . . . 1 . . . . . . . . . . . . Mechanics 2 | . . . . . . . . . . . . . . . . . 1 . . . . . . . 1 . . . . . . . . . . . . Recycling Units 3 | . 2 . 1 . . . . . . . . . . . . . . . . . . . . . . . . . . . . . . . . . . Tunnel 3 | . 2 . 1 . . . . . . . . . . . . . . . . . . . . . . . . . . . . . . . . . . Scanalyzers . | . . . . . . . . . . . . . . . . . . . . . . . . . . . . . . . . . . . . . . Garrison Access 3 | . . . . . . . . . . . 1 . . . . . . . . . 1 . . . . . . . . . . . . 1 . . . Reprogram 3 | . . . . . . . . . . . 1 . . . . . . . . . 1 . . . . . . . . . . . . 1 . . . Data Cores Recovered 1 | . . . . . . . . . . . . . . . . . . . . . . . . . . . . . . . . 1 . . . . . Used 1 | . . . . . . . . . . . . . . . . . . . . . . . . . . . . . . . . 1 . . . . . Hacking Detections 105 | . 2 . 6 1 2 2 10 4 8 . 11 4 1 1 5 2 5 . . . 1 2 7 2 2 3 3 . 1 10 . 3 2 1 3 . 1 Full Trace Events 9 | . . . 1 . . . 2 1 2 . 1 . . . . . . . . . 1 . . . . 1 . . . . . . . . . . . Feedback Events 1 | . . . . . . . . . . . . . . . . . . . . . 1 . . . . . . . . . . . . . . . . Hackware Fried 1 | . . . . . . . . . . . . . . . . . . . . . 1 . . . . . . . . . . . . . . . . Feedback Blocked . | . . . . . . . . . . . . . . . . . . . . . . . . . . . . . . . . . . . . . . Robot Schematics Acquired 4 | . . . . . . . . . . . . . . . 1 . . . . . . . . . . . . . . 3 . . . . . . . Robots Built 3 | . . . . . . . . . . . . . . . . . . . . . . . . . . . . . . 3 . . . . . . . Authchips . | . . . . . . . . . . . . . . . . . . . . . . . . . . . . . . . . . . . . . . Time 56 | . . . . . . . . . . . . . . . . . . . . . . . . . . . . . . 56 . . . . . . . Total Robot Build Rating 18 | . . . . . . . . . . . . . . . . . . . . . . . . . . . . . . 18 . . . . . . . Part Schematics Acquired 12 | . . . . . . . . . . . . . . . . . . . . . 1 . . . . . . . . 11 . . . . . . . Parts Built 2 | . . . . . . . . . . . . . . . 2 . . . . . . . . . . . . . . . . . . . . . . Authchips . | . . . . . . . . . . . . . . . . . . . . . . . . . . . . . . . . . . . . . . Time 106 | . . . . . . . . . . . . . . . 106 . . . . . . . . . . . . . . . . . . . . . . Total Part Build Rating 12 | . . . . . . . . . . . . . . . 12 . . . . . . . . . . . . . . . . . . . . . . Parts Repaired 1 | . . . . . . . . . . . . . . . . . . . . . 1 . . . . . . . . . . . . . . . . Time 50 | . . . . . . . . . . . . . . . . . . . . . 50 . . . . . . . . . . . . . . . . Parts Recycled . | . . . . . . . . . . . . . . . . . . . . . . . . . . . . . . . . . . . . . . Recycled Matter . | . . . . . . . . . . . . . . . . . . . . . . . . . . . . . . . . . . . . . . Retrieved Matter . | . . . . . . . . . . . . . . . . . . . . . . . . . . . . . . . . . . . . . . Retrieved Components . | . . . . . . . . . . . . . . . . . . . . . . . . . . . . . . . . . . . . . . Parts Scanalyzed 2 | . . . . . . . . . . . . . . . . . . . . . 1 . 1 . . . . . . . . . . . . . . Part Schematics Acquired 1 | . . . . . . . . . . . . . . . . . . . . . 1 . . . . . . . . . . . . . . . . Parts Damaged 2 | . . . . . . . . . . . . . . . . . . . . . 1 . 1 . . . . . . . . . . . . . . Bothacking | -11 -10 -10 -9 -9 -8 -8 -8 -8 -8 -8 -7 -7 -7 -7 -6 -6 -6 -6 -5 -5 -5 -5 -4 -4 -4 -4 -3 -3 -3 -3 -3 -2 -2 -1 -1 -1 -1 ------------ Run | Yrd Mat Min Mat Min Mat Gar Mat Gar Mat Gar Fac Gar Fac Gar Fac Gar Fac Gar Fac Was Fac Gar Fac Gar Fac Gar Res Gar Res Tes Gar Res Gar Acc Gar Acc Com Used RIF Installer 15 | . . . . . . 1 . 1 . 1 . 1 . 1 . 1 . 2 . . . 1 . 1 . 1 . 1 . . 1 . 1 . 1 . . Coupler Efficiency 3 | . . . . . . . . . . . . . . . . . . . . . . 1 . . . . . . . . 1 . 1 . . . . Hotswap 1 | . . . . . . . . 1 . . . . . . . . . . . . . . . . . . . . . . . . . . . . . Command Fork 1 | . . . . . . . . . . . . . . . . . . 1 . . . . . . . . . . . . . . . . . . . Threat Obfuscator 1 | . . . . . . . . . . . . . . . . . . . . . . . . . . . . 1 . . . . . . . . . Signal Jammer 1 | . . . . . . . . . . . . . . . . . . . . . . . . 1 . . . . . . . . . . . . . Zone Cloak 2 | . . . . . . . . . . . . 1 . . . 1 . . . . . . . . . . . . . . . . . . . . . Robot Detection 1 | . . . . . . . . . . . . . . . . . . 1 . . . . . . . . . . . . . . . . . . . Watcher Feeds 1 | . . . . . . . . . . . . . . . . . . . . . . . . . . . . . . . . . . . 1 . . Patrol Navigation 1 | . . . . . . . . . . . . . . . . . . . . . . . . . . 1 . . . . . . . . . . . Structural Interface 1 | . . . . . . . . . . . . . . 1 . . . . . . . . . . . . . . . . . . . . . . . Program Shield 1 | . . . . . . . . . . 1 . . . . . . . . . . . . . . . . . . . . . . . . . . . Robots Hacked 285 | . . . . . . 6 8 3 . 3 6 8 1 6 10 9 12 7 1 . 4 8 1 24 14 15 8 4 2 8 12 5 19 8 29 34 10 Non-combat 35 | . . . . . . . 4 . . . 3 . 1 . 1 . 2 . . . . . . . 3 . 3 . . 2 1 3 . 2 . 5 5 Combat 250 | . . . . . . 6 4 3 . 3 3 8 . 6 9 9 10 7 1 . 4 8 1 24 11 15 5 4 2 6 11 2 19 6 29 29 5 Robot Hacks Applied 368 | . . . . . . 6 12 3 . 3 8 8 1 6 11 11 22 7 1 . 4 8 1 24 17 17 16 4 2 27 12 11 19 8 29 58 12 parse_system 17 | . . . . . . . . . . . 1 . . . . . 1 1 . . . . . . 2 2 . . . 1 . . . . . 9 . generate_echo 1 | . . . . . . . . . . . . . . . . . . . . . . . . . . . . . . . . . . . . . 1 ignore_repairs 3 | . . . . . . . 1 . . . . . . . . . . . . . . . . . 1 . . . . 1 . . . . . . . locate_stockpiles 1 | . . . . . . . . . . . . . . . . . . . . . . . . . . . . . . . . 1 . . . . . deconstruct_bot 2 | . . . . . . . . . . . . . . . . . . . . . . . . . . . . . . . . . . . . . 2 purge_threat 48 | . . . . . . . 4 . . . 2 . . . . . 9 . . . . . . . 2 . 7 . . . . 4 . . . 20 . block_reporting 4 | . . . . . . . . . . . . . . . . . 1 . . . . . . . . . 1 . . . . 2 . . . . . find_scanalyzer 1 | . . . . . . . . . . . . . . . . . . . . . . . . . . . . . . 1 . . . . . . . locate_prototypes 3 | . . . . . . . . . . . . . . . . . . . . . . . . . . . . . . 3 . . . . . . . report_prototypes 2 | . . . . . . . . . . . . . . . . . . . . . . . . . . . . . . 2 . . . . . . . report_analyses 12 | . . . . . . . . . . . . . . . . . . . . . . . . . . . . . . 12 . . . . . . . reboot_propulsion 1 | . . . . . . . . . . . . . . . . 1 . . . . . . . . . . . . . . . . . . . . . scatter_targeting 2 | . . . . . . . . . . . . . . . . . 1 . . . . . . . . . . . . . . . 1 . . . . mark_system 1 | . . . . . . . . . . . . . . . . 1 . . . . . . . . . . . . . . . . . . . . . link_complan 1 | . . . . . . . . . . . . . . . 1 . . . . . . . . . . . . . . . . . . . . . . overload_power 3 | . . . . . . . . . . . . . . 1 . . 1 . . . . . . 1 . . . . . . . . . . . . . disable_weapons 2 | . . . . . . . . . . . . . . . . 2 . . . . . . . . . . . . . . . . . . . . . reboot_system 11 | . . . . . . 2 . . . . . . . 2 3 1 1 1 . . . 1 . . . . . . . . . . . . . . . overwrite_iff 48 | . . . . . . . . . . . 2 . . 1 5 . . 2 . . . 6 . 9 3 3 . . . . 3 1 2 . 4 3 4 formatsys_low 28 | . . . . . . . 3 . . . 2 . 1 . 1 . 2 . . . . . . . 2 . 3 . . 4 1 2 . . . 4 3 formatsys_high 177 | . . . . . . 4 4 3 . 3 1 8 . 2 1 6 6 3 1 . 4 1 1 14 7 12 5 4 2 3 8 1 16 8 25 22 2 Relay Couplers Released 226 | . . . . . . 20 . 17 . 4 . 16 . 16 . 16 4 7 . . . 23 . 16 . 16 . 9 . 4 11 . 22 . 21 4 . Machine Destruction 211 | . . . . . . 20 . 17 . 4 . 16 . 16 . 16 . 7 . . . 20 . 16 . 16 . 9 . . 11 . 22 . 21 . . Programmers 15 | . . . . . . . . . . . . . . . . . 4 . . . . 3 . . . . . . . 4 . . . . . 4 . Attached 77 | . . . . . . 5 4 1 . 2 1 4 . 3 2 4 2 6 . . 2 10 . 1 2 5 2 . 1 3 3 3 2 . 3 5 1 Fabnet Peak Effective % . | . . . . . . . . . . . . . . . . . . . . . . . . . . . . . . . . . . . . . . Robots Rewired 34 | . . . . . . 4 . 4 . 6 . . . 4 . 2 . 2 . . . . . . . . . 1 . . 5 . . . 6 . . Allies Hacked 3 | . . . . . . . . . . . . . . . . . . 1 . . . . . . . . . . . 1 . . . . 1 . . Hacks Repelled . | . . . . . . . . . . . . . . . . . . . . . . . . . . . . . . . . . . . . . . Allies | -11 -10 -10 -9 -9 -8 -8 -8 -8 -8 -8 -7 -7 -7 -7 -6 -6 -6 -6 -5 -5 -5 -5 -4 -4 -4 -4 -3 -3 -3 -3 -3 -2 -2 -1 -1 -1 -1 -------- Run | Yrd Mat Min Mat Min Mat Gar Mat Gar Mat Gar Fac Gar Fac Gar Fac Gar Fac Gar Fac Was Fac Gar Fac Gar Fac Gar Res Gar Res Tes Gar Res Gar Acc Gar Acc Com Total Allies 355 | . . . . 3 . 8 7 8 . 9 7 12 1 7 7 10 8 11 1 . 5 10 1 33 15 18 10 7 3 12 20 4 24 8 42 33 11 Largest Group 38 | . . . . 3 3 5 8 12 3 7 2 8 9 15 6 8 13 12 8 2 3 4 1 13 14 10 14 15 10 10 14 16 22 26 33 38 4 Highest-Rated Group 2233 | . . . . 40 40 132 249 335 116 120 32 270 278 399 174 500 621 592 406 61 139 189 80 662 670 470 605 744 441 476 911 979 1495 1669 2005 2233 154 Highest-Rated Ally 183 | . . . . 16 16 39 90 90 90 90 26 80 80 80 47 116 116 116 116 32 49 80 80 80 80 56 64 119 142 142 119 119 119 119 119 183 71 Total Orders 58 | . . . . . . . 2 11 1 1 . . . 3 1 1 7 4 1 . 1 . . 2 1 3 . . . 3 1 2 8 . . 2 3 STAY 14 | . . . . . . . . 3 . 1 . . . 1 . . 3 1 . . . . . 1 . 2 . . . 1 . . 1 . . . . FOLLOW 15 | . . . . . . . . 2 . . . . . 1 . . 3 2 . . . . . 1 . 1 . . . 1 . . 4 . . . . AID 22 | . . . . . . . 1 3 1 . . . . . 1 1 1 1 1 . 1 . . . 1 . . . . 1 1 1 2 . . 2 3 DROP 2 | . . . . . . . 1 . . . . . . . . . . . . . . . . . . . . . . . . 1 . . . . . PICKUP 5 | . . . . . . . . 3 . . . . . 1 . . . . . . . . . . . . . . . . . . 1 . . . . Ally Attacks 2553 | . . . . 10 . 56 74 80 23 40 16 45 . 99 83 75 108 139 18 . 48 60 6 80 154 68 34 42 27 90 46 38 104 81 247 541 21 Total Damage 79918 | . . . . 81 . 798 1168 1800 974 388 176 1082 . 2004 2158 3516 3944 4010 324 . 1827 1513 191 2072 4902 1832 1266 1310 753 3541 1446 1605 3329 3064 8282 20082 480 Kills 513 | . . . . 1 . 5 15 23 9 6 1 17 . 25 14 23 35 31 5 . 10 13 1 12 31 8 4 8 4 19 7 13 18 11 39 100 5 Allies Corrupted 33 | . . . . . . . . . . . 1 . . 1 . . . . . . 2 . . . 3 1 2 . 1 3 . 3 3 . 2 11 . Allies Melted 3 | . . . . . . . . . . . . . . . . . . 2 . . 1 . . . . . . . . . . . . . . . . Intel | -11 -10 -10 -9 -9 -8 -8 -8 -8 -8 -8 -7 -7 -7 -7 -6 -6 -6 -6 -5 -5 -5 -5 -4 -4 -4 -4 -3 -3 -3 -3 -3 -2 -2 -1 -1 -1 -1 ------- Run | Yrd Mat Min Mat Min Mat Gar Mat Gar Mat Gar Fac Gar Fac Gar Fac Gar Fac Gar Fac Was Fac Gar Fac Gar Fac Gar Res Gar Res Tes Gar Res Gar Acc Gar Acc Com Active Infowar (turns) 3358 | 8 100 . . . . . . . . . 1112 5 . . . . 298 70 . . 636 1126 . . . . . . . . 2 1 . . . . . Sensors 368 | . . . . . . . . . . . . . . . . . 298 70 . . . . . . . . . . . . . . . . . . . Terrain 108 | 8 100 . . . . . . . . . . . . . . . . . . . . . . . . . . . . . . . . . . . . Structural 1117 | . . . . . . . . . . . 1112 5 . . . . . . . . . . . . . . . . . . . . . . . . . T.N.C. 164 | . . . . . . . . . . . . . . . . . . . . . 162 . . . . . . . . . 2 . . . . . . Machine Analysis 695 | . . . . . . . . . . . . . . . . . . . . . 591 104 . . . . . . . . . . . . . . . Jamming 1594 | . . . . . . . . . . . . . . . . . . . . . 467 1126 . . . . . . . . . 1 . . . . . Robot Analysis Total 5 | . . . 1 1 1 . 1 . . . 1 . . . . . . . . . . . . . . . . . . . . . . . . . . Derelict Logs Recovered 2 | . . 1 . 1 . . . . . . . . . . . . . . . . . . . . . . . . . . . . . . . . . Drone Launches . | . . . . . . . . . . . . . . . . . . . . . . . . . . . . . . . . . . . . . . Drone Recoveries . | . . . . . . . . . . . . . . . . . . . . . . . . . . . . . . . . . . . . . . Exploration | -11 -10 -10 -9 -9 -8 -8 -8 -8 -8 -8 -7 -7 -7 -7 -6 -6 -6 -6 -5 -5 -5 -5 -4 -4 -4 -4 -3 -3 -3 -3 -3 -2 -2 -1 -1 -1 -1 ------------- Run | Yrd Mat Min Mat Min Mat Gar Mat Gar Mat Gar Fac Gar Fac Gar Fac Gar Fac Gar Fac Was Fac Gar Fac Gar Fac Gar Res Gar Res Tes Gar Res Gar Acc Gar Acc Com Turns Passed 42746 | 75 677 591 877 448 35 1832 1244 1767 846 989 2046 1052 77 1045 1072 951 1651 1510 74 65 1187 1864 788 1796 1586 1670 729 331 200 2335 1333 824 1352 552 1410 4295 1570 Spaces Moved 23941 | 38 349 408 712 527 45 987 679 948 444 331 1431 648 51 665 691 703 1253 908 69 75 1106 1061 441 758 517 641 396 217 148 1133 550 448 635 257 690 2128 853 Core 208 | 4 . . . . . . . . . . 5 . . . . . . . . 21 40 . . . . . . . . . . . . . . . 138 Treads 9472 | . . . . . . . 473 948 444 331 119 . . . . . . . . . . 121 441 758 517 166 . . . . 500 448 635 257 690 2128 496 Legs 11137 | 34 349 408 297 . . 949 206 . . . 199 648 51 665 691 703 1253 908 69 54 294 940 . . . 475 396 217 148 1133 50 . . . . . . Wheels 1108 | . . . . . . . . . . . 1108 . . . . . . . . . . . . . . . . . . . . . . . . . . Hover 1451 | . . . 415 527 45 38 . . . . . . . . . . . . . . 228 . . . . . . . . . . . . . . . 198 Flight 565 | . . . . . . . . . . . . . . . . . . . . . 544 . . . . . . . . . . . . . . . 21 Fastest Speed 21 | 50 120 120 56 56 52 52 120 150 150 155 86 120 120 110 110 105 97 90 90 50 21 105 160 160 240 190 120 120 120 112 112 155 153 155 155 152 35 Average Speed 135 | 112 141 120 86 56 53 117 154 150 153 209 111 120 120 117 125 109 102 103 94 81 60 132 160 204 241 213 156 120 120 163 163 155 154 155 155 154 118 Slowest Speed 600 | 120 190 120 120 116 56 120 225 150 155 320 600 120 120 120 190 112 108 180 96 180 120 320 160 240 323 400 190 190 120 186 320 160 155 155 155 235 245 Overloaded Moves 13 | . . . . . . . . . . . . . . . . . . . . . 13 . . . . . . . . . . . . . . . . Propulsion Burnouts . | . . . . . . . . . . . . . . . . . . . . . . . . . . . . . . . . . . . . . . Robots Hopped 4 | . . . . . . . . . . . . . . . . . . . . . 3 . . . . . . . . 1 . . . . . . . Potential Cave-ins 2 | . . . . . . . . . . . . . . . . . . . . . . . . . . . . . . 2 . . . . . . . Cave-ins Triggered . | . . . . . . . . . . . . . . . . . . . . . . . . . . . . . . . . . . . . . . Exploration Rate (%) 52 | 4 61 92 61 78 6 95 68 92 41 45 40 92 2 70 19 89 39 75 3 71 25 93 13 93 18 79 15 43 8 88 90 14 90 9 89 69 32 Regions Visited 37 Branch Regions 4 Pre-discovered Areas 4 | . 2 1 1 . . . . . . . . . . . . . . . . . . . . . . . . . . . . . . . . . . Known Exits Taken 16 | . . . 1 . 1 . 1 . 1 . 1 . 1 . 1 . 1 . . . 1 . 1 . 1 . 1 . 1 1 . 1 . 1 . . . Unknown Exits Taken 5 | 1 1 1 . 1 . . . . . . . . . . . . . . . . . . . . . . . . . . . . . . . 1 . Scrap Searched 4 | . . 2 . 2 . . . . . . . . . . . . . . . . . . . . . . . . . . . . . . . . . Spaces Dug 150 | . . . 1 . . 16 3 3 1 4 5 17 . 21 . 1 . 9 1 . 14 1 6 . 2 . . . 1 15 . . 4 . 9 9 7 Terrain Destroyed 1241 | . . . 64 81 . 33 44 28 38 75 12 42 . 56 6 34 41 10 1 . 24 52 6 4 43 96 22 20 1 21 195 . 4 1 32 90 65 Melee 139 | . . . 1 . . 16 3 3 1 4 5 17 . 21 . 1 . 9 1 . 14 1 6 . 2 . . . 1 9 . . 4 . 9 4 7 Projectile 102 | . . . 1 . . . 1 . . . 4 . . . 2 . . 1 . . . 1 . 4 4 17 . . . 12 1 . . 1 2 37 14 AOE 999 | . . . 62 81 . 17 40 25 37 71 3 25 . 35 4 33 41 . . . 10 49 . . 37 79 22 20 . . 194 . . . 21 49 44 Terrain Rammed . | . . . . . . . . . . . . . . . . . . . . . . . . . . . . . . . . . . . . . . Walls Destroyed . | . . . . . . . . . . . . . . . . . . . . . . . . . . . . . . . . . . . . . . Machines Disabled . | . . . . . . . . . . . . . . . . . . . . . . . . . . . . . . . . . . . . . . Actions | -11 -10 -10 -9 -9 -8 -8 -8 -8 -8 -8 -7 -7 -7 -7 -6 -6 -6 -6 -5 -5 -5 -5 -4 -4 -4 -4 -3 -3 -3 -3 -3 -2 -2 -1 -1 -1 -1 --------- Run | Yrd Mat Min Mat Min Mat Gar Mat Gar Mat Gar Fac Gar Fac Gar Fac Gar Fac Gar Fac Was Fac Gar Fac Gar Fac Gar Res Gar Res Tes Gar Res Gar Acc Gar Acc Com Total 31476 | 51 444 464 875 666 54 1373 839 1202 533 556 1722 808 66 816 827 855 1565 1334 75 79 1573 1327 502 961 787 846 476 273 169 1482 841 571 961 404 963 2903 1233 Wait 3510 | . 18 21 23 124 6 71 74 109 6 75 91 42 14 34 48 87 206 267 1 2 372 39 33 49 185 59 23 21 8 141 94 88 247 123 130 435 144 Move 23902 | 37 348 407 711 526 44 986 679 947 444 330 1430 647 50 664 691 702 1252 907 69 74 1099 1060 441 757 516 640 395 216 147 1131 549 447 634 256 689 2127 853 Hop 4 | . . . . . . . . . . . . . . . . . . . . . 3 . . . . . . . . 1 . . . . . . . Pick Up 224 | 1 5 . 9 1 . 9 8 8 2 4 6 5 . 6 3 8 6 9 . . 7 13 2 35 4 12 4 6 . 8 9 3 12 1 10 7 1 Fast Attach 307 | 5 5 1 23 . 2 24 7 1 3 7 31 1 . 4 9 6 7 8 1 . 28 23 4 8 5 13 5 4 3 13 12 4 3 1 4 17 15 Attach 142 | . . 1 3 . 2 2 3 6 1 4 2 3 . 4 2 2 5 4 . . 5 5 1 6 6 10 5 1 1 13 5 3 1 1 1 11 23 Detach 72 | . 1 . 5 . . 1 2 1 . 1 3 1 . . 1 1 5 . . 1 3 5 . 1 1 2 2 . 1 6 4 . 1 . . 5 18 Swap 332 | . 11 4 10 5 . 27 10 12 6 6 24 12 . 12 12 9 18 19 . . 2 17 5 9 11 6 3 2 . 14 12 3 3 3 10 20 15 Drop 328 | . 10 1 27 1 . 26 9 7 2 5 33 7 . 6 3 8 7 13 . 2 16 29 2 17 2 3 3 2 3 19 18 6 10 . 4 21 6 Fire 1156 | 8 40 27 32 9 . 15 8 12 56 13 70 23 1 14 35 19 28 28 3 . 5 81 2 33 27 55 19 6 . 30 41 13 23 18 68 198 96 Melee 1109 | . 6 . 31 . . 181 32 58 13 37 30 44 . 70 20 8 25 77 1 . 28 51 10 34 25 18 11 8 4 73 63 2 22 . 21 50 56 Ram . | . . . . . . . . . . . . . . . . . . . . . . . . . . . . . . . . . . . . . . Kick 11 | . . 2 1 . . . . . . . . . . . 3 . 2 . . . 1 . . . . . . . . 2 . . . . . . . Crush 8 | . . . . . . . . . . . . . . . . . . . . . . . 2 . . . . . . . 1 . . . 1 4 . Escape Stasis 60 | . . . . . . 16 . . . . . 7 . 2 . . . 2 . . . 3 . . . 22 . 2 . . . . . . . . 6 Rewire 243 | . . . . . . 15 7 7 . 74 2 6 1 . . 5 4 . . . 4 1 . 12 5 6 6 4 2 8 33 2 5 1 25 8 . Trap 58 | . . . . . . . . 34 . . . . . . . . . . . . . . . . . . . 1 . 23 . . . . . . . Miscellaneous 10 | . . . . . . . . . . . . 10 . . . . . . . . . . . . . . . . . . . . . . . . . Route ------- -11/Scrapyard -10/Materials (discovered 4 exits: *Mat / *Min x2 / [*Sub]) -10/Mines (discovered 2 exits: *Mat x2) -9/Materials (discovered 4 exits: *Mat x2 / *Min / [*Sto]) -9/Mines -8/Materials -8/Garrison (discovered 3 exits: *Mat x3) -8/Materials (discovered 3 exits: *Fac x2 / Gar) -8/Garrison (discovered 4 exits: *Fac x3 / *Mat) -8/Materials (discovered 3 exits: *Fac x2 / Gar) -8/Garrison -7/Factory (discovered 4 exits: *Fac x3 / Gar) -7/Garrison (discovered 3 exits: *Fac x3) -7/Factory -7/Garrison (discovered 3 exits: *Fac x3) -6/Factory (discovered 4 exits: *Fac x2 / [*Low] / Gar) -6/Garrison (discovered 3 exits: *Fac x3) -6/Factory (discovered 3 exits: *Fac x2 / Gar) -6/Garrison (discovered 2 exits: *Fac x2) -5/Factory -5/Waste -5/Factory -5/Garrison (discovered 3 exits: *Fac x3) -4/Factory -4/Garrison (discovered 3 exits: *Fac x3) -4/Factory -4/Garrison (discovered 3 exits: *Res x3) -3/Research -3/Garrison -3/Research -3/Testing (discovered 2 exits: *Res / Gar) -3/Garrison (discovered 3 exits: *Res x3) -2/Research -2/Garrison (discovered 3 exits: *Acc x3) -1/Access -1/Garrison (discovered 4 exits: [*Acc x4]) -1/Access -1/Command History --------- Turn | Location | Event 14 | -11/Scrapyard | Discovered new exit (range 16) 76 | -11/Scrapyard | Entered Materials 312 | -10/Materials | Build established: Mutant 372 | -10/Materials | Discovered new exit (range 13) 426 | -10/Materials | Discovered new exit (range 10) 601 | -10/Materials | Core integrity fell below 50% 662 | -10/Materials | Discovered new exit (range 8) 684 | -10/Materials | Discovered new exit (range 8) 753 | -10/Materials | Entered Mines 813 | -10/Mines | Core integrity fell below 20% 936 | -10/Mines | Build established: Scavenger-Mutant 1107 | -10/Mines | Discovered new exit (range 10) 1128 | -10/Mines | Deemed a non-threat by the Exiles lab entrance 1166 | -10/Mines | Met a Derelict who couldn't figure out how to use a Trap Extractor 1190 | -10/Mines | Discovered new exit (range 8) 1192 | -10/Mines | Learned location of Storage (-9) 1344 | -10/Mines | Entered Materials 1344 | -9/Materials | Evolved 2 slots: Utility x2 1345 | -9/Materials | Identified exit to Mines 1724 | -9/Materials | Discovered new exit (range 11) 1952 | -9/Materials | Discovered new exit (range 16) 2116 | -9/Materials | Build established: Mutant 2208 | -9/Materials | Discovered new exit (range 9) 2211 | -9/Materials | Central database locked down 2221 | -9/Materials | Entered Mines 2224 | -9/Mines | Found a hidden stash of uninstalled traps 2255 | -9/Mines | A weapon hastily lodged in a ceiling crevice suddenly fell to the ground 2292 | -9/Mines | Discovered new exit (range 12) 2300 | -9/Mines | Received a Rocket Launcher from a helpful Derelict 2331 | -9/Mines | Assisted by bots powering up and referring to "LRC-V3" 2345 | -9/Mines | Learned Materials terminal intel 2379 | -9/Mines | Assembled infested the area 2447 | -9/Mines | Destroyed 13 combat bots 2669 | -9/Mines | Entered Materials 2669 | -8/Materials | Accompanied by 3 allies 2669 | -8/Materials | Evolved 2 slots: Propulsion x1, Utility x1 2670 | -8/Materials | Loaded intel: 12 terminal locations 2684 | -8/Materials | Identified exit to Garrison 2704 | -8/Materials | Entered Garrison 2704 | -8/Garrison | Accompanied by 3 allies 2862 | -8/Garrison | Garrison Relay disabled 2882 | -8/Garrison | Triggered checkpoint 3114 | -8/Garrison | Build established: Scavenger-Mutant 3152 | -8/Garrison | Triggered checkpoint 3223 | -8/Garrison | Spotted B-75 Beast 3223 | -8/Garrison | Spotted B-75 Beast 3245 | -8/Garrison | Discovered new exit (range 14) 3256 | -8/Garrison | Triggered checkpoint 3515 | -8/Garrison | Garrison Relay disabled 3564 | -8/Garrison | Garrison Relay disabled 3971 | -8/Garrison | Garrison Relay disabled 4007 | -8/Garrison | Discovered new exit (range 11) 4018 | -8/Garrison | Installed Relay Interface Framework 4064 | -8/Garrison | Triggered checkpoint 4150 | -8/Garrison | Triggered checkpoint 4170 | -8/Garrison | Triggered checkpoint 4324 | -8/Garrison | Triggered checkpoint 4472 | -8/Garrison | Garrison Relay disabled 4492 | -8/Garrison | Discovered new exit (range 8) 4536 | -8/Garrison | Entered Materials 4536 | -8/Materials | Accompanied by 4 allies 4692 | -8/Materials | Build established: Bothacker-Mutant 5101 | -8/Materials | Discovered new exit (range 3) 5457 | -8/Materials | Build established: Commander-Mutant 5677 | -8/Materials | Core integrity fell below 50% 5692 | -8/Materials | Discovered new exit (range 8) 5761 | -8/Materials | Identified exit to Garrison 5780 | -8/Materials | Entered Garrison 5780 | -8/Garrison | Accompanied by 8 allies 5792 | -8/Garrison | Triggered checkpoint 5859 | -8/Garrison | Discovered new exit (range 3) 6024 | -8/Garrison | Garrison Relay disabled 6068 | -8/Garrison | Rescued a captive Derelict 6090 | -8/Garrison | Triggered checkpoint 6097 | -8/Garrison | Garrison Relay disabled 6210 | -8/Garrison | Triggered checkpoint 6210 | -8/Garrison | Triggered checkpoint 6283 | -8/Garrison | Discovered new exit (range 12) 6318 | -8/Garrison | Triggered checkpoint 6414 | -8/Garrison | Garrison Relay disabled 6438 | -8/Garrison | Learned Factory security intel 6586 | -8/Garrison | Lost 3 allies 6600 | -8/Garrison | Triggered checkpoint 6633 | -8/Garrison | Garrison Relay disabled 6694 | -8/Garrison | Discovered new exit (range 10) 6809 | -8/Garrison | Lost 3 allies 6839 | -8/Garrison | Discovered new exit (range 33) 6839 | -8/Garrison | Discovered new exit (range 19) 6839 | -8/Garrison | Discovered new exit (range 53) 6839 | -8/Garrison | Discovered new exit (range 59) 6854 | -8/Garrison | Triggered checkpoint 6896 | -8/Garrison | Triggered checkpoint 6947 | -8/Garrison | P-60 Hacker assimilated allied Grenadier 3a 7055 | -8/Garrison | Expanded RIF knowledge: Hotswap 7239 | -8/Garrison | Build established: Mutant 7547 | -8/Garrison | Entered Materials 7547 | -8/Materials | Accompanied by 3 allies 8053 | -8/Materials | Discovered new exit (range 3) 8332 | -8/Materials | Discovered new exit (range 15) 8393 | -8/Materials | Identified exit to Garrison 8393 | -8/Materials | Entered Garrison 8393 | -8/Garrison | Accompanied by 1 ally 8598 | -8/Garrison | Core integrity fell below 20% 8624 | -8/Garrison | Lost 7 allies 8635 | -8/Garrison | System corruption reached 10% 8647 | -8/Garrison | Destroyed 10 combat bots 8655 | -8/Garrison | Lost 5 parts (2n2u1w) 8759 | -8/Garrison | Expanded RIF knowledge: Program Shield 8892 | -8/Garrison | Build established: Bothacker-Mutant 8983 | -8/Garrison | Triggered checkpoint 9049 | -8/Garrison | Garrison Relay disabled 9253 | -8/Garrison | Triggered checkpoint 9333 | -8/Garrison | Triggered checkpoint 9371 | -8/Garrison | Discovered new exit (range 8) 9382 | -8/Garrison | Entered Factory 9382 | -7/Factory | Evolved 2 slots: Propulsion x1, Utility x1 9638 | -7/Factory | Lost 3 allies 9639 | -7/Factory | Lost 5 parts (1p2n2u) 9826 | -7/Factory | Discovered new exit (range 10) 9856 | -7/Factory | Identified exit to Factory 10632 | -7/Factory | Discovered exit to Factory (range 5) 10978 | -7/Factory | Discovered exit to Factory (range 11) 11267 | -7/Factory | Identified exit to Garrison 11417 | -7/Factory | Garrison activated, responded to threat 11428 | -7/Factory | Entered Garrison 11428 | -7/Garrison | Accompanied by 1 ally 11480 | -7/Garrison | Triggered checkpoint 11497 | -7/Garrison | Garrison Relay disabled 11575 | -7/Garrison | Rescued a captive Derelict 11575 | -7/Garrison | Rescued a captive Derelict 11658 | -7/Garrison | Triggered checkpoint 11733 | -7/Garrison | Lost 3 allies 11753 | -7/Garrison | Triggered checkpoint 11811 | -7/Garrison | Phase Generator disabled 11846 | -7/Garrison | Discovered new exit (range 13) 11911 | -7/Garrison | Garrison Relay disabled 11912 | -7/Garrison | Triggered checkpoint 12062 | -7/Garrison | Triggered checkpoint 12128 | -7/Garrison | Discovered new exit (range 3) 12150 | -7/Garrison | Expanded RIF knowledge: Zone Cloak 12167 | -7/Garrison | Garrison Relay disabled 12188 | -7/Garrison | Triggered checkpoint 12229 | -7/Garrison | Found embedded Infiltrators 12284 | -7/Garrison | Triggered checkpoint 12342 | -7/Garrison | Triggered checkpoint 12382 | -7/Garrison | Triggered checkpoint 12386 | -7/Garrison | Garrison Relay disabled 12437 | -7/Garrison | Discovered new exit (range 10) 12448 | -7/Garrison | Build established: Botlord-Mutant 12480 | -7/Garrison | Entered Factory 12480 | -7/Factory | Accompanied by 8 allies 12503 | -7/Factory | Identified exit to Garrison 12557 | -7/Factory | Entered Garrison 12557 | -7/Garrison | Accompanied by 9 allies 12583 | -7/Garrison | Triggered checkpoint 12605 | -7/Garrison | Triggered checkpoint 12627 | -7/Garrison | Garrison Relay disabled 12831 | -7/Garrison | Triggered checkpoint 12856 | -7/Garrison | Garrison Relay disabled 12945 | -7/Garrison | Triggered checkpoint 12975 | -7/Garrison | Triggered checkpoint 13122 | -7/Garrison | Garrison Relay disabled 13139 | -7/Garrison | Triggered checkpoint 13168 | -7/Garrison | Discovered exit to Factory (range 10) 13249 | -7/Garrison | Triggered checkpoint 13291 | -7/Garrison | Discovered exit to Factory (range 66) 13291 | -7/Garrison | Discovered exit to Factory (range 30) 13291 | -7/Garrison | Discovered exit to Factory (range 19) 13450 | -7/Garrison | Expanded RIF knowledge: Structural Interface 13461 | -7/Garrison | Triggered checkpoint 13481 | -7/Garrison | Garrison Relay disabled 13602 | -7/Garrison | Entered Factory 13602 | -6/Factory | Accompanied by 6 allies 13602 | -6/Factory | Evolved 2 slots: Propulsion x1, Utility x1 13755 | -6/Factory | Discovered new exit (range 15) 13940 | -6/Factory | Discovered new exit (range 4) 14155 | -6/Factory | Discovered new exit (range 11) 14199 | -6/Factory | Fabricated Hvy. Phase Cannon? 14302 | -6/Factory | First assault squad dispatched 14497 | -6/Factory | Lost 9 allies 14530 | -6/Factory | Lost 4 parts (2n2u) 14674 | -6/Factory | Identified exit to Garrison 14674 | -6/Factory | Entered Garrison 14674 | -6/Garrison | Accompanied by 1 ally 14747 | -6/Garrison | Found embedded Infiltrators 14792 | -6/Garrison | Triggered checkpoint 14860 | -6/Garrison | Expanded RIF knowledge: Zone Cloak 14935 | -6/Garrison | Garrison Relay disabled 14940 | -6/Garrison | Triggered checkpoint 14962 | -6/Garrison | Discovered new exit (range 14) 15026 | -6/Garrison | Triggered checkpoint 15078 | -6/Garrison | Found Imp. Powered Armor 15081 | -6/Garrison | Found Imp. Powered Armor 15086 | -6/Garrison | Found Imp. Powered Armor 15088 | -6/Garrison | Found Imp. Powered Armor 15096 | -6/Garrison | Spotted B-90 Cyclops 15100 | -6/Garrison | Spotted B-86 Titan 15102 | -6/Garrison | Triggered checkpoint 15103 | -6/Garrison | Rewired B-86 Titan 15113 | -6/Garrison | Rewired B-86 Titan 15116 | -6/Garrison | Allies destroyed B-90 Cyclops 15124 | -6/Garrison | Allies destroyed B-86 Titan 15192 | -6/Garrison | Garrison Relay disabled 15194 | -6/Garrison | Triggered checkpoint 15302 | -6/Garrison | Discovered new exit (range 13) 15366 | -6/Garrison | Triggered checkpoint 15408 | -6/Garrison | Triggered checkpoint 15413 | -6/Garrison | Garrison Relay disabled 15466 | -6/Garrison | Garrison Relay disabled 15477 | -6/Garrison | Destroyed 8 combat bots 15485 | -6/Garrison | Discovered new exit (range 9) 15625 | -6/Garrison | Entered Factory 15625 | -6/Factory | Accompanied by 7 allies 16414 | -6/Factory | Discovered new exit (range 13) 16546 | -6/Factory | Discovered new exit (range 14) 16825 | -6/Factory | Build established: Commander-Mutant 16946 | -6/Factory | Identified exit to Factory 17025 | -6/Factory | First assault squad dispatched 17196 | -6/Factory | Core integrity fell below 50% 17239 | -6/Factory | Identified exit to Garrison 17276 | -6/Factory | Entered Garrison 17276 | -6/Garrison | Accompanied by 12 allies 17305 | -6/Garrison | Expanded RIF knowledge: Robot Detection 17431 | -6/Garrison | System corruption reached 10% 17432 | -6/Garrison | Triggered checkpoint 17505 | -6/Garrison | Lost 3 parts (2n1u) 17515 | -6/Garrison | Expanded RIF knowledge: Command Fork 17529 | -6/Garrison | Garrison Relay disabled 17550 | -6/Garrison | Triggered checkpoint 17794 | -6/Garrison | Triggered checkpoint 17804 | -6/Garrison | Triggered checkpoint 17836 | -6/Garrison | Triggered checkpoint 17861 | -6/Garrison | Build established: Botlord-Mutant 17947 | -6/Garrison | P-60 Hacker assimilated allied Slayer 5b 18022 | -6/Garrison | Discovered exit to Factory (range 10) 18034 | -6/Garrison | Triggered checkpoint 18058 | -6/Garrison | Garrison Relay disabled 18249 | -6/Garrison | Found embedded Infiltrators 18299 | -6/Garrison | Discovered exit to Factory (range 11) 18311 | -6/Garrison | Spotted B-90 Cyclops 18327 | -6/Garrison | Rewired B-86 Titan 18331 | -6/Garrison | Rewired B-75 Beast 18344 | -6/Garrison | Allies destroyed B-90 Cyclops 18369 | -6/Garrison | Lost 6 allies 18786 | -6/Garrison | Entered Factory 18786 | -5/Factory | Accompanied by 7 allies 18786 | -5/Factory | Evolved 2 slots: Utility x2 18860 | -5/Factory | Sucked down chute 18860 | -5/Factory | Entered Waste 18875 | -5/Waste | EMP discharged 18876 | -5/Waste | Spotted C-40 Crusher 18890 | -5/Waste | Spotted C-40 Crusher 18896 | -5/Waste | Spotted C-40 Crusher 18896 | -5/Waste | Crushed by Compactor (1 part destroyed, 1 dropped) 18897 | -5/Waste | Spotted C-40 Crusher 18903 | -5/Waste | Spotted C-40 Crusher 18911 | -5/Waste | Crushed by Compactor (1 part destroyed, 2 dropped) 18914 | -5/Waste | Crushed by Compactor (1 part destroyed, 1 dropped) 18916 | -5/Waste | Spotted C-40 Crusher 18920 | -5/Waste | Discovered new exit (range 10) 18925 | -5/Waste | Entered Factory 18945 | -5/Factory | Lost 3 parts (2n1w) 19003 | -5/Factory | System corruption reached 10% 19005 | -5/Factory | 6 allies followed down the chute 19050 | -5/Factory | Lost 5 parts (1p2n1u1w) 19056 | -5/Factory | Garrison activated, responded to threat 19175 | -5/Factory | Repaired Imp. Surge Thruster 19217 | -5/Factory | Spotted B-75 Beast 19583 | -5/Factory | Identified exit to Garrison 19647 | -5/Factory | P-70 Sage assimilated allied Slayer 6c 19731 | -5/Factory | System Shield fried by hacking feedback 19772 | -5/Factory | Build established: Bothacker-Mutant 20112 | -5/Factory | Entered Garrison 20152 | -5/Garrison | Triggered checkpoint 20168 | -5/Garrison | Garrison Relay disabled 20276 | -5/Garrison | Triggered checkpoint 20429 | -5/Garrison | Spotted Striker 20449 | -5/Garrison | Discovered new exit (range 12) 20467 | -5/Garrison | Build established: Botlord-Mutant 20603 | -5/Garrison | Triggered checkpoint 20788 | -5/Garrison | Triggered checkpoint 20828 | -5/Garrison | Triggered checkpoint 20832 | -5/Garrison | Destroyed 7 combat bots 20839 | -5/Garrison | Core integrity fell below 50% 20920 | -5/Garrison | Lost 3 parts (2u1w) 21017 | -5/Garrison | Found embedded Infiltrators 21083 | -5/Garrison | Discovered new exit (range 12) 21144 | -5/Garrison | Triggered checkpoint 21156 | -5/Garrison | Garrison Relay disabled 21340 | -5/Garrison | Discovered new exit (range 13) 21399 | -5/Garrison | Lost 4 allies 21466 | -5/Garrison | Expanded RIF knowledge: Coupler Efficiency 21480 | -5/Garrison | Triggered checkpoint 21499 | -5/Garrison | Garrison Relay disabled 21515 | -5/Garrison | Garrison Relay disabled 21881 | -5/Garrison | Garrison Relay disabled 21976 | -5/Garrison | Entered Factory 21976 | -4/Factory | Accompanied by 1 ally 21976 | -4/Factory | Evolved 2 slots: Propulsion x1, Utility x1 22476 | -4/Factory | First assault squad dispatched 22732 | -4/Factory | Garrison activated, responded to threat 22764 | -4/Factory | Identified exit to Garrison 22764 | -4/Factory | Entered Garrison 22788 | -4/Garrison | Expanded RIF knowledge: Signal Jamming 22834 | -4/Garrison | Triggered checkpoint 22855 | -4/Garrison | Garrison Relay disabled 22933 | -4/Garrison | Lost 5 allies 23054 | -4/Garrison | Triggered checkpoint 23056 | -4/Garrison | Triggered checkpoint 23076 | -4/Garrison | Triggered checkpoint 23082 | -4/Garrison | Triggered checkpoint 23123 | -4/Garrison | Lost 10 allies 23312 | -4/Garrison | Triggered checkpoint 23333 | -4/Garrison | Spotted B-86 Titan 23468 | -4/Garrison | Discovered new exit (range 11) 23515 | -4/Garrison | Garrison Relay disabled 23516 | -4/Garrison | Triggered checkpoint 23785 | -4/Garrison | Spotted B-86 Titan 23946 | -4/Garrison | Rescued a captive Derelict 23948 | -4/Garrison | Triggered checkpoint 23948 | -4/Garrison | Rescued a captive Derelict 23974 | -4/Garrison | Garrison Relay disabled 24045 | -4/Garrison | Discovered new exit (range 5) 24231 | -4/Garrison | Found embedded Infiltrators 24268 | -4/Garrison | Discovered new exit (range 11) 24270 | -4/Garrison | Triggered checkpoint 24318 | -4/Garrison | Lost 3 allies 24393 | -4/Garrison | Garrison Relay disabled 24560 | -4/Garrison | Entered Factory 24560 | -4/Factory | Accompanied by 11 allies 24737 | -4/Factory | Lost 3 allies 25214 | -4/Factory | Lost 4 allies 25284 | -4/Factory | Lost 4 allies 25495 | -4/Factory | Lost 3 allies 25621 | -4/Factory | Cargo convoy interrupted 26070 | -4/Factory | Lost 3 parts (2n1u) 26144 | -4/Factory | Identified exit to Garrison 26146 | -4/Factory | Entered Garrison 26248 | -4/Garrison | Triggered checkpoint 26256 | -4/Garrison | Spotted B-86 Titan 26472 | -4/Garrison | Triggered checkpoint 26474 | -4/Garrison | Spotted B-86 Titan 26484 | -4/Garrison | Destroyed B-86 Titan 26517 | -4/Garrison | Lost 4 allies 26593 | -4/Garrison | Garrison Relay disabled 26725 | -4/Garrison | Lost 3 parts (1n2w) 26729 | -4/Garrison | Core integrity fell below 50% 26894 | -4/Garrison | Expanded RIF knowledge: Patrol Navigation 26959 | -4/Garrison | Discovered new exit (range 3) 27034 | -4/Garrison | Triggered checkpoint 27064 | -4/Garrison | Triggered checkpoint 27218 | -4/Garrison | Triggered checkpoint 27251 | -4/Garrison | Garrison Relay disabled 27280 | -4/Garrison | Garrison Relay disabled 27347 | -4/Garrison | Discovered new exit (range 8) 27370 | -4/Garrison | Garrison Relay disabled 27590 | -4/Garrison | Triggered checkpoint 27605 | -4/Garrison | Discovered new exit (range 13) 27648 | -4/Garrison | Triggered checkpoint 27654 | -4/Garrison | Garrison Relay disabled 27690 | -4/Garrison | Learned Research security intel 27816 | -4/Garrison | Entered Research 27816 | -3/Research | Accompanied by 9 allies 27816 | -3/Research | Evolved 2 slots: Propulsion x2 28026 | -3/Research | Allied Derelicts emerged from ambush trap array 28434 | -3/Research | Lost 10 allies 28527 | -3/Research | Identified exit to Garrison 28545 | -3/Research | Entered Garrison 28545 | -3/Garrison | Accompanied by 9 allies 28567 | -3/Garrison | Rewired Executioner 28601 | -3/Garrison | Triggered checkpoint 28621 | -3/Garrison | Garrison Relay disabled 28638 | -3/Garrison | Garrison Relay disabled 28687 | -3/Garrison | Rescued a captive Derelict 28716 | -3/Garrison | Triggered checkpoint 28716 | -3/Garrison | Triggered checkpoint 28723 | -3/Garrison | Triggered checkpoint 28741 | -3/Garrison | Destroyed 7 combat bots 28775 | -3/Garrison | Triggered checkpoint 28781 | -3/Garrison | Lost 5 allies 28790 | -3/Garrison | Garrison Relay disabled 28827 | -3/Garrison | Discovered new exit (range 10) 28843 | -3/Garrison | Expanded RIF knowledge: Threat Obfuscation 28876 | -3/Garrison | Entered Research 28876 | -3/Research | Accompanied by 10 allies 29040 | -3/Research | Discovered new exit (range 16) 29066 | -3/Research | Identified exit to Testing 29076 | -3/Research | Entered Testing 29076 | -3/Testing | Accompanied by 6 allies 29113 | -3/Testing | Lost 8 allies 29252 | -3/Testing | Found Prototype Ballistic Cannon 29252 | -3/Testing | Identified Omega Cannon 29385 | -3/Testing | Found Prototype Energy Cannon 29385 | -3/Testing | Identified Cld. Nova Cannon 29478 | -3/Testing | Found Centrium Heavy Armor Plating 29742 | -3/Testing | Fabricated B-60 Warrior? 29811 | -3/Testing | Found Prototype Device 29811 | -3/Testing | Identified AEGIS Remote Shield 29903 | -3/Testing | Discovered new exit (range 8) 30023 | -3/Testing | Lost 8 allies 30062 | -3/Testing | Found Z-bomb Delivery System 30211 | -3/Testing | Found SHELL Armor 30363 | -3/Testing | Lost 3 parts (3n) 30738 | -3/Testing | Found Prototype Energy Cannon 30738 | -3/Testing | Identified Hpw. Disruptor Cannon 31382 | -3/Testing | Garrison activated, responded to threat 31411 | -3/Testing | Identified exit to Garrison 31411 | -3/Testing | Entered Garrison 31415 | -3/Garrison | Lost 3 allies 31443 | -3/Garrison | Expanded RIF knowledge: Coupler Efficiency 31621 | -3/Garrison | Triggered checkpoint 31677 | -3/Garrison | Garrison Relay disabled 31724 | -3/Garrison | System corruption reached 10% 31909 | -3/Garrison | Triggered checkpoint 32168 | -3/Garrison | Discovered new exit (range 10) 32205 | -3/Garrison | Triggered checkpoint 32243 | -3/Garrison | Garrison Relay disabled 32355 | -3/Garrison | Triggered checkpoint 32365 | -3/Garrison | Triggered checkpoint 32383 | -3/Garrison | Triggered checkpoint 32419 | -3/Garrison | Triggered checkpoint 32448 | -3/Garrison | Garrison Relay disabled 32499 | -3/Garrison | Discovered new exit (range 14) 32634 | -3/Garrison | Discovered new exit (range 11) 32691 | -3/Garrison | Rewired Executioner 32693 | -3/Garrison | Rewired Executioner 32744 | -3/Garrison | Entered Research 32744 | -2/Research | Accompanied by 14 allies 32744 | -2/Research | Evolved 2 slots: Utility x2 33489 | -2/Research | Identified exit to Garrison 33547 | -2/Research | Lost 3 allies 33568 | -2/Research | Entered Garrison 33568 | -2/Garrison | Accompanied by 13 allies 33598 | -2/Garrison | Expanded RIF knowledge: Coupler Efficiency 33616 | -2/Garrison | Triggered checkpoint 33634 | -2/Garrison | Garrison Relay disabled 33960 | -2/Garrison | Triggered checkpoint 33981 | -2/Garrison | Triggered checkpoint 33981 | -2/Garrison | Spotted B-90 Cyclops 33990 | -2/Garrison | Triggered checkpoint 34040 | -2/Garrison | Lost 9 allies 34092 | -2/Garrison | Triggered checkpoint 34244 | -2/Garrison | Triggered checkpoint 34261 | -2/Garrison | Garrison Relay disabled 34295 | -2/Garrison | Lost 3 allies 34351 | -2/Garrison | Discovered new exit (range 11) 34482 | -2/Garrison | Triggered checkpoint 34501 | -2/Garrison | Garrison Relay disabled 34543 | -2/Garrison | Garrison Relay disabled 34556 | -2/Garrison | Found embedded Infiltrators 34603 | -2/Garrison | Discovered new exit (range 13) 34740 | -2/Garrison | Triggered checkpoint 34760 | -2/Garrison | Garrison Relay disabled 34788 | -2/Garrison | Discovered new exit (range 8) 34920 | -2/Garrison | Entered Access 34920 | -1/Access | Accompanied by 22 allies 34920 | -1/Access | Evolved 2 slots: Power x1, Utility x1 35327 | -1/Access | Spotted B-99 Colossus 35339 | -1/Access | Allies destroyed B-99 Colossus 35369 | -1/Access | Lost 3 allies 35383 | -1/Access | Identified exit to Garrison 35472 | -1/Access | Entered Garrison 35472 | -1/Garrison | Accompanied by 23 allies 35474 | -1/Garrison | Triggered checkpoint 35505 | -1/Garrison | Discovered new exit (range 3) 35564 | -1/Garrison | Triggered checkpoint 35601 | -1/Garrison | Rescued a captive Derelict 35613 | -1/Garrison | Garrison Relay disabled 35679 | -1/Garrison | Spotted B-99 Colossus 35681 | -1/Garrison | Triggered checkpoint 35699 | -1/Garrison | Lost 3 allies 35720 | -1/Garrison | Allies destroyed B-99 Colossus 35764 | -1/Garrison | Lost 14 allies 35835 | -1/Garrison | Garrison Relay disabled 35836 | -1/Garrison | Triggered checkpoint 35911 | -1/Garrison | Garrison Relay disabled 35983 | -1/Garrison | Discovered new exit (range 10) 36106 | -1/Garrison | Triggered checkpoint 36130 | -1/Garrison | Triggered checkpoint 36145 | -1/Garrison | Lost 5 allies 36176 | -1/Garrison | Triggered checkpoint 36200 | -1/Garrison | Garrison Relay disabled 36247 | -1/Garrison | Discovered new exit (range 12) 36358 | -1/Garrison | Found embedded Infiltrators 36493 | -1/Garrison | Found Relay Coupler [Proto] 36495 | -1/Garrison | Found Relay Coupler [Proto] 36498 | -1/Garrison | Found Relay Coupler [Proto] 36558 | -1/Garrison | Expanded RIF knowledge: Watcher Feeds 36576 | -1/Garrison | Discovered new exit (range 11) 36578 | -1/Garrison | Triggered checkpoint 36606 | -1/Garrison | Garrison Relay disabled 36610 | -1/Garrison | Triggered checkpoint 36882 | -1/Garrison | Entered Access 36882 | -1/Access | Accompanied by 33 allies 37509 | -1/Access | Garrison activated, responded to threat 37579 | -1/Access | Allies destroyed Executioner 37614 | -1/Access | Lost 19 allies 37654 | -1/Access | Garrison activated, responded to threat 37878 | -1/Access | P-80 Master assimilated allied Terminator 10b 38222 | -1/Access | System corruption reached 10% 38243 | -1/Access | Lost 7 allies 38382 | -1/Access | First assault squad dispatched 39114 | -1/Access | Lost 3 allies 39240 | -1/Access | Spotted B-99 Colossus 39281 | -1/Access | Destroyed B-99 Colossus 39322 | -1/Access | Lost 3 allies 39725 | -1/Access | Lost 3 allies 39874 | -1/Access | Garrison activated, responded to threat 40020 | -1/Access | Spotted B-99 Colossus 40326 | -1/Access | Lost 3 allies 40806 | -1/Access | Destroyed 7 combat bots 40827 | -1/Access | Sterilization system engaged 40867 | -1/Access | Discovered new exit (range 6) 41127 | -1/Access | Ambient heat levels rising (+10) 41177 | -1/Access | Entered Command 41210 | -1/Command | Spotted B-99 Colossus 41245 | -1/Command | Destroyed B-99 Colossus 41427 | -1/Command | First assault squad dispatched 42015 | -1/Command | Destroyed 13 combat bots 42047 | -1/Command | System corruption reached 30% 42075 | -1/Command | High security lockdown imminent 42078 | -1/Command | Lost 3 allies 42155 | -1/Command | High security lockdown engaged 42333 | -1/Command | Spotted Investigator 42335 | -1/Command | Scanned by Researcher 42336 | -1/Command | Assimilated Investigator with formatsys_high 42399 | -1/Command | Destroyed 10 combat bots 42444 | -1/Command | Lost 5 parts (2n2u1w) 42464 | -1/Command | Found Prototype Launcher 42464 | -1/Command | Identified Containment Facilitator 42505 | -1/Command | Core integrity fell below 50% 42513 | -1/Command | Destroyed 11 combat bots 42553 | -1/Command | Lost 10 parts (1p6n3u) 42678 | -1/Command | Spotted Executioner 42679 | -1/Command | Spotted Executioner 42679 | -1/Command | Spotted Striker 42707 | -1/Command | Core integrity fell below 20% 42744 | -1/Command | Destroyed Striker 42747 | -1/Command | Destroyed by P-80 Master with Gamma Rifle Last Messages --------------- 42682_ Relay Coupler [Swarmer] destroyed. 42683_ Penetrated by Slug. 42684_ H>T65KPUH&QAM3CM8FYOL, D%% 42703_ XYI4CMO60NA,6WUGZQYO6MEMZA= LLRJP